Cogmind - Beta 9.6 @@@ ROGUE MODE // 2020.07.24 @ 12:25:35 Player: Alexbot Result: Escaped! Performance ------------- Evolutions (9) 4500 Regions Visited (32) 6400 Robots Destroyed (389) 1945 Value Destroyed (20462) 20462 Prototype IDs (144) 2880 Alien Tech Used (0) 0 Bonus (22691) 22691 TOTAL SCORE: 58878 Bonus ------- Triggered High Security 500 High Alert Combat Kills 7445 Follower Combat Kills 9061 Network Hubs Disabled 400 Aligned with FarCom 300 Met Data Miner 300 Met Imprinter 300 Was Imprinted 300 Met Zhirov 300 Built Enhanced Grunts 300 A7 Reached Mainframe 300 Met R17 at Cetus 500 Scanned by Researcher 500 Destroyed MAIN.C Guards 500 Win 3000 Friendly Fire -1315 Cogmind --------- Core Integrity 738/1600 Matter 277/300 Energy 593/600 System Corruption 21% Temperature Cool (3) Movement Treading (145) Location To Epsilon Eridani Parts ------- > --- POWER (2) -------- Quantum Reactor Quantum Reactor > --- PROPULSION (5) --- Biometal Heavy Treads Impulse Thruster Array > --- UTILITY (15) ----- Large Storage Unit Experimental Signal Interpreter Experimental Terrain Scan Processor Experimental Core Analyzer > --- WEAPON (3) ------- Compact Tesla Bomb Launcher > --- INVENTORY (10) --- Heavy Hardcell Cannon Power Sword Peak State ------------ > --- POWER ------------ Micro Fission Core Zionite Heavy DM Reactor > --- PROPULSION ------- Improved Antigrav System Improved Gyrokinetic Inverter Combat Linear Gravjet Combat Linear Gravjet Combat Linear Gravjet > --- UTILITY ---------- Advanced Heat Sink Advanced Heat Sink Large Storage Unit Large Storage Unit Zionite Biocell Long-range Sensor Array Experimental Signal Interpreter Experimental Terrain Scan Processor Experimental Core Analyzer Advanced Reaction Control System Experimental Phase Shifter Experimental Utility Shielding EM Dispersion Field Experimental Hacking Suite Improved System Shield > --- WEAPON ----------- HERF Cannon Improved Potential Cannon > --- INVENTORY -------- Biometal Heavy Treads Improved Fusion Compressor Improved Matter Compressor Experimental Terrain Scanner Advanced Transmission Jammer Zionite Weapon Casing Experimental Thermal Shield Advanced Force Field Improved System Restoration Module Tachyon Dispersion Ray Compact Linear Accelerator Compact Tesla Bomb Launcher Micro-nuke Launcher Advanced Remote Datajack [Rating: 190] Favorites ----------- Power Micro Fission Core Engine Light Angular Momentum Engine Power Core Micro Fission Core Reactor Zionite Heavy DM Reactor Propulsion Improved Medium Treads Treads Improved Medium Treads Leg Enhanced Flexi-carbon Leg Wheel Wheel Hover Unit Combat Airjet Flight Unit Cooled Field Propulsion Drive Utility Large Storage Unit Device Advanced Heat Sink Storage Large Storage Unit Processor Experimental Terrain Scan Processor Hackware Hacking Suite Protection Light Regenerative Plating Weapon Gauss Cannon Energy Gun Gatling Laser Energy Cannon Proton Cannon Ballistic Gun Flak Gun Ballistic Cannon Gauss Cannon Launcher Precision Grenade Launcher Special Weapon Advanced Remote Datajack Slashing Weapon Ionic Axe Piercing Weapon Lance Build | -11 -10 -10 -10 -9 -8 -7 -7 -7 -7 -6 -6 -6 -6 -6 -6 -6 -5 -5 -5 -5 -4 -4 -4 -4 -4 -4 -4 -3 -3 -2 -1 -1 ------- Run | Scr Mat Min Exi Min Mat Fac Low Low Dat Pro Fac Was Fac Low Low Zio Pro Fac Was Fac Fac Was Fac Ext Cet Arc Hub Res Tes Res Acc Com Slots Evolved 18 | . . . . . 4 2 . . . . 2 . . . . . . 2 . . 2 . . . . . . 2 . 2 2 . Power 1 | . . . . . . . . . . . . . . . . . . 1 . . . . . . . . . . . . . . Propulsion 3 | . . . . . . . . . . . 2 . . . . . . . . . . . . . . . . . . . 1 . Utility 13 | . . . . . 4 2 . . . . . . . . . . . . . . 2 . . . . . . 2 . 2 1 . Weapon 1 | . . . . . . . . . . . . . . . . . . 1 . . . . . . . . . . . . . . Parts Attached 633 | 6 1 . 4 6 34 14 11 4 18 5 30 6 1 5 5 6 . 22 1 59 22 2 56 22 12 . 36 71 49 72 14 39 Power 50 | 1 . . . 1 1 1 . . 1 . 2 1 . 1 . 1 . 4 . 5 . . 2 . . . 2 7 4 8 . 8 Engine 8 | 1 . . . 1 . . . . . . 2 1 . 1 . 1 . . . . . . . . . . . 1 . . . . Core 18 | . . . . . 1 1 . . . . . . . . . . . 4 . 5 . . 2 . . . 1 2 . 1 . 1 Reactor 24 | . . . . . . . . . 1 . . . . . . . . . . . . . . . . . 1 4 4 7 . 7 Propulsion 112 | 2 . . . 2 8 2 3 1 4 . 8 . . . 3 . . 9 . 11 2 . 2 6 . . 2 10 6 21 3 7 Treads 27 | . . . . 2 5 1 . . . . 5 . . . 3 . . . . . . . . . . . 1 3 1 3 . 3 Leg 22 | . . . . . 3 . 2 1 4 . 3 . . . . . . . . . . . . . . . . . . 9 . . Wheel 6 | 2 . . . . . 1 . . . . . . . . . . . . . . . . . . . . . . . 3 . . Hover 51 | . . . . . . . . . . . . . . . . . . 9 . 11 2 . 2 2 . . 1 7 5 6 3 3 Flight 6 | . . . . . . . 1 . . . . . . . . . . . . . . . . 4 . . . . . . . 1 Utility 297 | 1 1 . 2 . 11 7 5 1 5 2 8 3 1 . 1 3 . 5 . 26 19 . 45 10 11 . 24 38 22 29 6 11 Device 194 | . . . . . 2 2 3 . 1 1 4 2 1 . . 1 . 2 . 17 14 . 36 10 5 . 19 30 20 15 2 7 Storage 36 | 1 . . 2 . 1 2 . 1 1 . 2 . . . . . . 1 . 3 1 . 1 . 4 . 2 3 . 7 2 2 Processor 11 | . 1 . . . 2 . . . . . . . . . . 1 . 1 . . 2 . . . . . 1 1 . 2 . . Hackware 11 | . . . . . . 1 . . . . 1 1 . . . 1 . . . . 1 . 2 . . . . 3 . 1 . . Protection 45 | . . . . . 6 2 2 . 3 1 1 . . . 1 . . 1 . 6 1 . 6 . 2 . 2 1 2 4 2 2 Artifact . | . . . . . . . . . . . . . . . . . . . . . . . . . . . . . . . . . Weapon 174 | 2 . . 2 3 14 4 3 2 8 3 12 2 . 4 1 2 . 4 1 17 1 2 7 6 1 . 8 16 17 14 5 13 Energy Gun 17 | . . . . . 4 . . . 1 . 3 . . . . . . 1 . . . . 2 1 1 . . . 3 . . 1 Energy Cannon 51 | . . . 2 . 1 . . . 1 1 4 1 . 2 . . . . . 8 . 1 5 3 . . 3 4 4 4 3 4 Ballistic Gun 9 | 2 . . . 2 . 1 1 . . . . . . . . . . . . . . . . . . . . . . 3 . . Ballistic Cannon 30 | . . . . . 6 2 1 1 2 1 3 1 . . 1 1 . 1 1 1 . . . 1 . . . 1 1 3 . 2 Launcher 30 | . . . . 1 3 1 . 1 3 1 1 . . 2 . 1 . . . 4 . 1 . . . . . . 4 1 1 5 Special Weapon 12 | . . . . . . . . . . . . . . . . . . 2 . 3 1 . . . . . . 4 . 1 1 . Impact Weapon . | . . . . . . . . . . . . . . . . . . . . . . . . . . . . . . . . . Slashing Weapon 21 | . . . . . . . 1 . 1 . 1 . . . . . . . . . . . . 1 . . 4 6 4 2 . 1 Piercing Weapon 4 | . . . . . . . . . . . . . . . . . . . . 1 . . . . . . 1 1 1 . . . Special Melee Weapon . | . . . . . . . . . . . . . . . . . . . . . . . . . . . . . . . . . Unidentified Prototypes 38 | . . . . . 2 . 1 . 2 . 1 1 1 . . 1 . . . . 2 . 3 2 . . 9 . 6 6 1 . Parts Lost 143 | . . 1 . 5 7 4 . 1 8 2 9 . 1 . 2 . . 2 . 9 3 1 4 2 . . 3 14 9 28 . 28 Power 23 | . . . . 1 1 1 . 1 . . 2 . . . . . . . . . . . . . . . . 3 5 3 . 6 Propulsion 28 | . . . . 2 2 1 . . 2 . 1 . . . . . . . . 4 . . 1 . . . 1 2 . 6 . 6 Utility 57 | . . 1 . . 2 1 . . 5 2 3 . 1 . 1 . . 1 . 1 2 . 1 1 . . 2 7 2 12 . 12 Weapon 35 | . . . . 2 2 1 . . 1 . 3 . . . 1 . . 1 . 4 1 1 2 1 . . . 2 2 7 . 4 Highest Loss Streak 18 | . . 1 . 5 3 2 . 1 8 1 4 . 1 . 2 . . 2 . 5 1 1 4 2 . . 1 4 4 6 . 18 Average Slot Usage (%) 88 | . 97 96 85 68 68 81 83 86 75 98 90 99 99 93 92 99 100 91 93 86 98 97 97 95 100 100 90 84 83 68 92 77 Engine 2 | . 14 14 14 11 6 . . . . . 4 6 6 6 6 6 6 1 . . . . . . . . . . . . . . Core 4 | . . . . . . 6 7 2 . . . . . . . . . 7 11 10 10 10 10 10 10 10 9 3 2 1 4 2 Treads 6 | . . . . 16 13 13 . . . . 4 26 26 26 26 26 26 8 . . . . . . . . . 1 4 1 . . Leg 2 | . . . . . 3 . . 9 10 15 18 . . . . . . . . . . . . . . . . . . 1 . . Wheel 1 | . 28 28 28 2 . . 6 . . . . . . . . . . . . . . . . . . . . . . 4 . . Hover 7 | . . . . . . . . . . . . . . . . . . 14 23 18 20 21 20 18 21 21 19 14 9 5 16 14 Device 10 | . . . . . 2 14 15 23 12 6 8 12 13 13 8 6 6 9 5 10 7 5 8 9 12 5 6 14 11 8 18 17 Storage 18 | . 14 14 14 14 9 16 22 20 21 23 22 26 26 26 26 26 26 17 23 19 15 15 14 15 16 21 15 15 14 14 12 9 Processor 5 | . 12 11 . . 2 . . . . . . . . . . 3 6 5 5 5 7 10 10 10 10 10 10 12 9 10 15 12 Hackware 8 | . . . . . . 6 7 7 7 7 11 12 12 6 6 12 13 10 5 5 9 10 13 10 10 10 7 8 14 5 8 4 Protection 4 | . . . . . 13 6 7 7 8 22 5 . . . 3 2 . . 5 3 9 10 2 5 1 5 3 . 2 . 4 3 Energy Gun 1 | . . . . . 3 . . . . . 3 6 6 6 2 . . 4 5 . . . 2 3 5 5 1 . . . . . Energy Cannon 2 | . . . 21 5 3 . . . . 4 1 1 6 5 6 1 . . . . . 1 6 3 5 5 2 . 1 . 1 2 Ballistic Gun 1 | . 28 28 6 11 3 3 5 . . . . . . . . . . . . . . . . . . . . . . 2 . . Ballistic Cannon 3 | . . . . . 6 11 6 9 5 7 5 4 . . 3 6 6 4 4 1 . . . . . . . . . 1 3 2 Slashing Weapon 1 | . . . . . . . 1 4 1 . 1 . . . . . . . . . . . . 1 5 5 5 3 4 2 . . Piercing Weapon 1 | . . . . . . . . . . . . . . . . . . . . 1 5 5 5 2 . . 3 3 . . . . Naked Turns . | . . . . . . . . . . . . . . . . . . . . . . . . . . . . . . . . . Heaviest Build 139 | 11 11 11 89 89 139 137 137 50 84 84 77 74 73 73 78 79 70 75 76 81 82 76 98 79 78 74 138 115 121 127 95 102 Greatest Support 150 | 20 20 20 20 40 40 40 28 30 56 56 120 120 120 120 120 120 120 120 76 88 88 88 96 82 82 82 82 150 150 112 115 130 Greatest Overweight (x) 6 | 1 . . 4 2 6 6 4 3 4 1 1 . . . . . . 1 . 3 1 . 1 1 . . 1 1 1 3 . 1 Average Overweight (x) . | . . . 1 2 3 2 3 1 1 1 . . . . . . . . . . . . . . . . . . . . . . Largest Inventory Capacity 44 | 6 6 6 24 24 44 30 30 14 14 14 20 20 20 20 20 20 20 20 20 20 20 20 20 20 20 20 20 26 26 22 16 16 Average Capacity 19 | 5 6 6 16 24 24 26 28 12 14 14 16 20 20 20 20 20 20 20 20 19 20 20 19 20 20 20 20 20 22 16 14 14 Most Carried 29 | 4 6 6 17 17 24 26 29 14 14 14 20 20 20 20 20 20 20 20 20 20 20 20 20 20 20 20 20 25 26 22 16 16 Average Carried 18 | 2 5 5 9 13 23 24 25 12 13 13 15 19 19 19 20 19 18 19 19 19 19 19 19 19 19 20 19 19 22 15 14 13 Final Capacity 30 | 6 6 6 24 24 24 30 10 14 14 14 20 20 20 20 20 20 20 20 20 20 20 20 20 20 20 20 20 26 22 14 16 10 Final Carried 26 | 4 6 6 17 12 24 26 10 14 14 14 20 20 20 20 20 20 17 20 20 20 19 20 20 19 20 20 16 25 22 14 16 3 Class Distribution -------------------- 46% | Messiah-Mutant 21% | Hauler-Mutant 13% | Scavenger-Mutant 5% | Mutant 4% | Hacker-Mutant 3% | Messiah-Skirmisher Dominant Class ---------------- Mutant | -10/Materials Mutant | -10/Mines Hauler-Mutant | -10/Exiles Hauler-Mutant | -9/Mines Hauler-Mutant | -8/Materials Hauler-Mutant | -7/Factory Hauler-Mutant | -7/Lower Caves Mutant | -7/Lower Caves Scavenger-Mutant | -7/Data Miner Scavenger-Mutant | -6/Proximity Caves Scavenger-Mutant | -6/Factory Hacker-Mutant | -6/Waste Hacker-Mutant | -6/Factory Hauler-Mutant | -6/Lower Caves Scavenger-Mutant | -6/Lower Caves Messiah-Mutant | -6/Zion Messiah-Mutant | -5/Proximity Caves Messiah-Skirmisher | -5/Factory Messiah-Tank | -5/Waste Messiah-Mutant | -5/Factory Messiah-Mutant | -4/Factory Messiah-Mutant | -4/Waste Messiah-Mutant | -4/Factory Messiah-Mutant | -4/Extension Messiah-Mutant | -4/Cetus Messiah-Mutant | -4/Archives Messiah-Mutant | -4/Hub_04(d) Messiah-Mutant | -3/Research Messiah-Mutant | -3/Testing Messiah-Mutant | -2/Research Messiah-Mutant | -1/Access Messiah-Mutant | -1/Command Resources | -11 -10 -10 -10 -9 -8 -7 -7 -7 -7 -6 -6 -6 -6 -6 -6 -6 -5 -5 -5 -5 -4 -4 -4 -4 -4 -4 -4 -3 -3 -2 -1 -1 ----------- Run | Scr Mat Min Exi Min Mat Fac Low Low Dat Pro Fac Was Fac Low Low Zio Pro Fac Was Fac Fac Was Fac Ext Cet Arc Hub Res Tes Res Acc Com Matter Collected 12487 | 227 134 42 . 3 837 655 117 309 227 181 857 81 16 128 62 36 318 696 109 1060 252 224 582 276 255 . 904 756 351 1577 216 999 Remotely . | . . . . . . . . . . . . . . . . . . . . . . . . . . . . . . . . . Salvage Created 20498 | . 176 42 . 54 1386 984 57 266 421 88 1081 229 56 380 100 . 291 665 507 1877 391 1161 701 260 223 . 2386 1959 1080 2258 515 904 Parts 826 | . 18 6 . . 72 51 7 9 16 12 53 3 1 10 10 . 9 33 9 94 16 9 45 11 8 . 63 70 56 86 18 31 Haulers Intercepted 8 | . . . . . 3 1 . . . . 2 . . . . . . . . . . . . . . . . 1 . . 1 . Recyclers Shooed 12 | . . . . . 1 . . . . . 6 . . . . . . 1 . 1 . . . . . . . 2 . 1 . . Parts Field Recycled . | . . . . . . . . . . . . . . . . . . . . . . . . . . . . . . . . . Retrieved Matter . | . . . . . . . . . . . . . . . . . . . . . . . . . . . . . . . . . Parts Self-Destructed 24 | . . . . . . . . 4 . 6 . . . 8 . . 6 . . . . . . . . . . . . . . . Prevented 31 | . . . . . . . . 5 . . . . . 9 9 . 8 . . . . . . . . . . . . . . . Kills | -11 -10 -10 -10 -9 -8 -7 -7 -7 -7 -6 -6 -6 -6 -6 -6 -6 -5 -5 -5 -5 -4 -4 -4 -4 -4 -4 -4 -3 -3 -2 -1 -1 ------- Run | Scr Mat Min Exi Min Mat Fac Low Low Dat Pro Fac Was Fac Low Low Zio Pro Fac Was Fac Fac Was Fac Ext Cet Arc Hub Res Tes Res Acc Com Combat Hostiles Destroyed 316 | . 7 3 . 3 31 22 2 6 4 9 23 . 1 6 1 . 8 8 2 31 2 5 13 2 2 . 30 14 15 32 4 30 Melee 65 | . . . . . . . 1 1 . . 2 . . . . . . . . 5 2 . 12 1 . . 15 8 8 10 . . Guns 49 | . 7 3 . . 16 11 . . . . 2 . . . . . . 7 1 . . . . . . . . . . 2 . . Cannons 84 | . . . . . 10 8 1 2 . 1 14 . 1 2 . . 1 1 1 12 . . 1 1 1 . 6 3 2 12 1 3 AOE 77 | . . . . 3 5 3 . 1 . 8 4 . . 3 . . 7 . . 11 . 5 . . . . . . 1 1 1 24 Classes Destroyed 25 | . 4 . . 1 7 1 2 . . . . . . . 1 . . . 1 1 . . . . . . 3 . . . . 4 Worker 21 | . . . . . 3 . . . . . 5 . . . . . . . . 3 1 . . . . . 2 2 2 . . 3 Builder 11 | . 1 . . . 3 . . . . . 1 . . . . . . 2 . 2 . . . . . . 2 . . . . . Hauler 8 | . . . . . 3 1 . . . . 2 . . . . . . . . . . . . . . . . 1 . . 1 . Recycler 14 | . . . . . 1 . . . . . . . . . . . . 1 . 3 1 . . 1 . . . 6 . 1 . . Mechanic 1 | . . . . . . . . . . . . . . . . . . . . . . . . . . . . . . . . 1 Operator 2 | . 2 . . . . . . . . . . . . . . . . . . . . . . . . . . . . . . . Watcher 10 | . . . . . 2 . . . . . . . . . . . . 2 . 1 2 . 1 . . . 1 . . . 1 . Swarmer 47 | . 6 3 . . 2 3 . . . 8 . . . 2 . . . . . 6 . . 4 . . . . . 2 4 . 7 Saboteur 5 | . . . . . . . . . . . . . . . . . . . . . . . . . . . 2 1 1 . . 1 Grunt 109 | . 1 . . 2 20 11 . 4 . . 8 . 1 4 . . 5 5 . 14 . . 4 . 1 . 8 4 5 8 . 4 Brawler 11 | . . . . 1 2 1 . . . . . . . . . . 1 . . 1 . . . . . . 4 . . . . 1 Duelist 9 | . . . . . 1 . . . . . 2 . . . . . . . . . . . . . . . 3 . 1 . . 2 Protector 5 | . . . . . . . . . . . . . . . . . . . . 1 . . . . . . 2 . . . . 2 Sentry 24 | . . . . . 4 2 . 1 . 1 5 . . . . . . . . 2 1 . . 2 . . 1 2 1 . . 2 Hunter 30 | . . . . . 2 1 . . . . 4 . . . . . 2 1 . 5 . . . . . . . . 3 8 3 1 Programmer 49 | . . . . . . 4 . 1 . . 4 . . . . . . 2 . 2 1 . 5 . . . 4 7 2 12 1 4 Behemoth 1 | . . . . . . . . . . . . . . . 1 . . . . . . . . . . . . . . . . . Compactor 7 | . . . . . . . . . . . . . . . . . . . 2 . . 5 . . . . . . . . . . Cetus Guard 1 | . . . . . . . . . . . . . . . . . . . . . . . . . 1 . . . . . . . Enhanced Grunt 4 | . . . . . . . . . 4 . . . . . . . . . . . . . . . . . . . . . . . Lightning 6 | . . . . . . . . . . . . . . . . . . . . . . . . . . . 6 . . . . . Investigator 1 | . . . . . . . . . . . . . . . . . . . . . . . . . . . . . . . . 1 Striker 2 | . . . . . . . . . . . . . . . . . . . . . . . . . . . . . . . . 2 Executioner 4 | . . . . . . . . . . . . . . . . . . . . . . . . . . . . . . . . 4 Z-Heavy 1 | . . . . . . . . . . . . . . . . . . . . . . . . . . . 1 . . . . . Master Thief 1 | . . . . . . . 1 . . . . . . . . . . . . . . . . . . . . . . . . . Thug 2 | . . . . . . . . . . . . . . 1 . . . . . . . . . . 1 . . . . . . . Wizard 1 | . . . . . . . . . . . . . . . . . . . . . . . . . . . . . . 1 . . Fireman 1 | . . . . . . . . . . . . . . . . . . . . . . . . . . . 1 . . . . . Mutant 1 | . . . . . . . 1 . . . . . . . . . . . . . . . . . . . . . . . . . Best Kill Streak 20 | . 10 3 . 3 9 5 1 3 3 4 7 . 1 4 1 . 3 5 1 13 2 5 6 1 2 . 7 4 3 5 4 20 Combat Bots Only 17 | . 6 3 . 3 9 5 1 3 3 4 5 . 1 4 1 . 3 3 1 8 1 5 6 1 2 . 7 4 3 5 3 17 Max Kills in Single Turn 5 | . 2 1 . 3 5 3 1 1 1 2 2 . 1 2 1 . 2 1 1 4 1 1 1 1 1 . 3 1 1 1 1 3 Gunslinging . | . . . . . . . . . . . . . . . . . . . . . . . . . . . . . . . . . Exploded 3 | . . . . 3 2 3 . 1 . 2 1 . . 2 . . 2 . . 3 . 1 . . . . . . 1 1 1 3 Melee 1 | . . . . . . . 1 1 . . 1 . . . . . . . . 1 1 . 1 1 . . 1 1 1 1 . . Uniques/NPCs Destroyed . | . . . . . . . . . . . . . . . . . . . . . . . . . . . . . . . . . Combat | -11 -10 -10 -10 -9 -8 -7 -7 -7 -7 -6 -6 -6 -6 -6 -6 -6 -5 -5 -5 -5 -4 -4 -4 -4 -4 -4 -4 -3 -3 -2 -1 -1 -------- Run | Scr Mat Min Exi Min Mat Fac Low Low Dat Pro Fac Was Fac Low Low Zio Pro Fac Was Fac Fac Was Fac Ext Cet Arc Hub Res Tes Res Acc Com Damage Taken 34055 | . 163 48 . 489 2592 1243 161 583 808 601 1894 . 76 300 281 . 423 840 . 2369 1121 24 771 501 55 . 1500 3682 2583 6171 179 4597 Core 5097 | . 34 7 . 32 321 81 7 132 244 95 200 . 21 25 36 . 6 163 . 427 108 . 15 77 11 . 62 661 539 931 44 818 Absorbed by Shields 2590 | . . . . . . . . . . . 88 . 84 146 . . . . . 209 247 . 253 11 53 . . 24 234 231 . 1010 Reduced by Siege Mode 103 | . . . . . . . . . . . . . . . . . . . . . . . . . . . . 89 . 14 . . Core Remaining (%) 50 | 100 . . . 70 41 . . . . 20 . . . . . . 66 . . 41 . . . . . . 76 . 7 35 . 46 Volleys Fired 856 | . 19 4 . 7 73 64 16 29 11 14 98 5 4 21 11 . 29 31 11 96 . 18 2 13 8 . 48 10 11 95 19 89 Largest 2 | . 2 2 . 2 2 2 2 2 1 2 2 1 1 1 1 . 1 1 1 1 . 1 1 1 1 . 1 1 1 2 1 1 Hottest 240 | . 40 40 . 120 138 96 76 92 36 134 134 75 75 75 75 . 57 57 57 90 . 36 35 88 240 . 88 70 81 88 200 200 Shots Fired 1177 | . 38 8 . 11 180 96 20 31 13 17 128 5 4 21 11 . 29 73 44 99 . 18 3 14 10 . 48 11 15 123 19 88 Gun 333 | . 38 8 . . 88 48 9 . 2 . 25 . . . . . . 42 33 4 . . . 2 2 . . . . 21 . 11 Cannon 701 | . . . . 6 80 45 11 26 . 10 96 5 4 18 11 . 17 30 11 84 . . 3 12 8 . 48 10 10 95 13 48 Launcher 134 | . . . . 5 12 3 . 5 11 7 7 . . 3 . . 12 . . 9 . 18 . . . . . . 5 5 6 26 Special 9 | . . . . . . . . . . . . . . . . . . 1 . 2 . . . . . . . 1 . 2 . 3 Kinetic 536 | . 38 8 . . 55 93 20 26 . 7 76 . . . . . 17 30 11 43 . . . 10 . . . 1 4 75 5 17 Thermal 273 | . . . . 6 113 . . . 2 3 33 . . . . . . 42 33 23 . . 3 2 2 . . . . . 3 8 Explosive 84 | . . . . 5 11 . . . . 7 7 . . . . . 12 . . 8 . 18 . . . . . . . . . 16 Electromagnetic 275 | . . . . . 1 3 . 5 11 . 12 5 4 21 11 . . . . 23 . . . 2 8 . 48 9 11 46 11 44 Robot Hit Streak 35 | . 4 6 . 5 17 15 9 8 6 5 13 6 10 6 11 . 8 8 35 10 . 21 23 27 31 . 8 15 16 9 5 9 Robot Miss Streak 9 | . 3 1 . 1 4 4 9 6 1 3 4 . . 2 . . 5 4 3 7 . . . . 1 . 3 . 2 3 4 3 Penetration Max 2 | . . . . . . 1 . . . . . . . . . . . 1 . 2 . . . . . . 1 . . . . . Secondary Targets 2 | . 2 . . . . . . . . . . . . . . . . . . . . . . . . . . . . . . . Max Gunslinging Chain 1 | . 1 . . . . . . . . . . . . . . . . . . . . . . . . . . . . . . . Autonomous 173 | . . . . . 62 . . . 3 . . . . . . . . 44 36 5 . . . . . . . 1 4 18 . . Shots Hit Robots 1141 | . 22 6 . 8 124 79 32 27 11 11 123 5 4 14 11 . 19 41 39 85 19 18 34 7 7 . 113 58 55 117 8 44 Core Hits 809 | . 13 3 . 6 76 79 9 18 11 16 101 . 2 9 3 . 24 21 8 78 7 10 21 5 6 . 56 28 26 46 10 117 Critical Hits 81 | . . . . . 5 4 2 . . . . . . . . . 4 16 7 12 1 . 3 1 . . 9 6 2 7 1 1 Critical Kills 29 | . . . . . 4 1 1 . . . . . . . . . 1 3 1 7 . . 1 . . . 2 2 1 3 1 1 Critical Parts Destroyed 44 | . . . . . 1 2 1 . . . . . . . . . 3 13 1 5 1 . 2 1 . . 7 3 . 4 . . Melee Attacks 630 | . . . . . . . 27 9 1 . 22 . . . . . . . . 50 44 . 97 19 . 1 113 103 72 72 . . Thermal 1 | . . . . . . . . . . . . . . . . . . . . . . . . . . . . 1 . . . . Impact . | . . . . . . . . . . . . . . . . . . . . . . . . . . . . . . . . . Slashing 246 | . . . . . . . 27 9 1 . 22 . . . . . . . . . . . . 12 . 1 34 21 47 72 . . Piercing 383 | . . . . . . . . . . . . . . . . . . . . 50 44 . 97 7 . . 79 81 25 . . . Sneak Attacks 29 | . . . . . . . . 1 1 . 2 . . . . . . . . 3 3 . . 1 . . 1 11 5 1 . . Combat Hostiles 1 | . . . . . . . . . . . . . . . . . . . . . . . . . . . 1 . . . . . Follow-up Attacks 21 | . . . . . . . . . . . . . . . . . . . . . . . . . . . 15 5 1 . . . Damage Inflicted 59832 | . 263 75 . 501 4897 1871 795 1007 690 867 4361 137 116 807 214 . 1530 1463 1205 4664 862 2129 1247 299 258 . 6456 3540 3418 5882 747 9531 Guns 6380 | . 263 75 . . 1703 872 174 . 37 . 536 . . . . . . 1013 970 126 . . . 33 35 . . . . 425 . 118 Cannons 16949 | . . . . 69 1439 833 138 413 . 130 2106 137 116 380 214 . 189 450 235 1582 . . 81 94 223 . 2015 535 408 3301 316 1545 Explosions 20440 | . . . . 432 1755 166 . 324 527 737 1159 . . 427 . . 1341 . . 1596 . 2129 . . . . 760 . 501 287 431 7868 Melee 16046 | . . . . . . . 483 270 126 . 560 . . . . . . . . 1360 862 . 1166 172 . . 3681 3005 2502 1859 . . Ramming 17 | . . . . . . . . . . . . . . . . . . . . . . . . . . . . . 7 10 . . Kinetic 10611 | . 263 75 . . 966 1705 312 413 . 130 1832 . . . . . 189 450 235 543 . . . 33 . . . 93 185 2593 113 481 Thermal 7208 | . . . . 69 2176 . . . 99 . 705 . . 120 . . . 1013 970 632 . . 81 33 35 . . . . . . 1275 Explosive 14978 | . . . . 432 1719 . . . . 737 990 . . . . . 1341 . . 1274 . 2129 . . . . . . . . . 6356 Electromagnetic 10972 | . . . . . 36 166 . 324 465 . 274 137 116 687 214 . . . . 855 . . . 61 223 . 2775 442 724 1420 634 1419 Impact . | . . . . . . . . . . . . . . . . . . . . . . . . . . . . . . . . . Slashing 6280 | . . . . . . . 483 270 126 . 560 . . . . . . . . . . . . . . . 1046 369 1567 1859 . . Piercing 9766 | . . . . . . . . . . . . . . . . . . . . 1360 862 . 1166 172 . . 2635 2636 935 . . . Highest Corruption 24 | . . . . 14 . . . 4 4 4 3 3 4 4 4 4 . 4 17 17 6 21 21 11 9 3 14 14 14 24 . 21 Average Corruption 7 | . . . . 13 . . . 3 4 4 1 3 3 4 4 4 . 3 9 14 4 11 10 8 6 3 6 3 11 15 . 16 Corruption Purged 61 | . . . . . . . . . . . . . . . . . . . . 7 . . 23 2 6 . . 8 6 9 . . Effects 563 | . . . . 4 . . . 9 14 15 7 7 6 20 11 4 . 19 6 99 7 7 62 10 21 1 41 32 41 86 . 34 Message Errors 97 | . . . . 1 . . . 4 4 4 3 4 2 1 1 . . 4 . 15 2 . 14 4 4 . 7 6 8 8 . 1 Matter Fused 100 | . . . . . . . . 1 3 4 . 1 . 9 4 2 . 3 4 12 2 2 11 2 3 1 9 3 12 9 . 3 Heat Flow Errors 62 | . . . . . . . . 1 2 3 1 1 2 5 2 2 . . . 8 . 1 10 . 3 . 4 3 3 9 . 2 Energy Discharges 73 | . . . . 1 . . . 1 . 1 3 . 2 3 1 . . 6 1 17 . . 10 . 4 . 3 4 2 10 . 4 Parts Rejected 10 | . . . . . . . . . . . . . . . . . . 2 . 2 1 . . . . . . . 1 3 . 1 Data Loss (minor) 51 | . . . . . . . . 2 2 3 . 1 . 1 2 . . 4 . 8 1 . 6 1 4 . 3 7 2 2 . 2 Data Loss (major) 10 | . . . . . . . . . . . . . . . . . . . 1 3 . 1 . . . . 1 . 1 . . 3 Misfires 10 | . . . . 1 . . . . . . . . . . . . . . . 3 . . 1 1 2 . . . . 2 . . Alerts 3 | . . . . . . . . . . . . . . . . . . . . 1 . . . . . . 1 1 . . . . Misdirections 41 | . . . . . . . . . . . . . . . . . . . . 11 . . 5 . . . 1 1 3 12 . 8 Targeting Errors 99 | . . . . 1 . . . . 3 . . . . 1 1 . . . . 15 1 3 5 2 1 . 12 7 9 29 . 9 Weapon Failures 7 | . . . . . . . . . . . . . . . . . . . . 4 . . . . . . . . . 2 . 1 Overload Shots 1 | . . . . . . . . . . . . . . . . . . . . . . . . . 1 . . . . . . . Overflow Damage 2488 | . . . . . 232 63 38 88 6 62 210 . . 11 . . 31 . . 67 105 . . . . . 250 276 531 235 . 283 Projectiles 522 | . . . . . 80 18 . . . . 51 . . . . . 12 . . 30 . . . . . . 106 3 71 117 . 34 Explosions 663 | . . . . . 152 45 . . . 62 22 . . 11 . . 19 . . 35 . . . . . . 68 . . . . 249 Melee 1303 | . . . . . . . 38 88 6 . 137 . . . . . . . . 2 105 . . . . . 76 273 460 118 . . Knockbacks 84 | . . . . . 12 7 2 4 . . 18 . . . . . 2 5 . 4 . . . 1 . . . . 1 23 . 5 Impact . | . . . . . . . . . . . . . . . . . . . . . . . . . . . . . . . . . Kinetic 79 | . . . . . 11 6 2 4 . . 18 . . . . . 2 5 . 4 . . . 1 . . . . 1 21 . 4 Secondary 5 | . . . . . 1 1 . . . . . . . . . . . . . . . . . . . . . . . 2 . 1 Self-Inflicted Damage 1295 | . . . . 190 162 120 . 8 . 51 . . . . . . . . . 128 . . . . . . 29 . 38 24 17 528 Shots 41 | . . . . 5 2 3 . 2 . 2 . . . . . . . . . 3 . . . . . . 2 . 5 1 2 14 Rammed 3 | . . . . . 1 . . . . . . . . . . . . . . . . . . . . . . . 1 1 . . Targets Rammed 3 | . . . . . 1 . . . . . . . . . . . . . . . . . . . . . . . 1 1 . . Kicked . | . . . . . . . . . . . . . . . . . . . . . . . . . . . . . . . . . Crushed . | . . . . . . . . . . . . . . . . . . . . . . . . . . . . . . . . . Highest Temperature 645 | . . . . 235 645 39 28 116 111 175 364 218 204 227 217 249 6 278 206 331 12 234 273 330 167 . 343 197 246 409 132 331 Average Temperature 105 | . . . . 137 186 10 13 70 64 64 86 128 115 97 100 123 6 100 98 81 4 64 120 88 67 . 130 96 69 68 43 97 Received Heat Transfer 4611 | . 12 . . 108 1242 372 40 156 102 54 551 . 17 74 21 . 45 45 . 545 96 . 17 20 6 . 135 336 249 310 . 58 Effects 24 | . . . . . 12 . . . . . 3 . . . . . . 1 . . . . 2 1 . . 1 . . 1 . 3 Energy Bleed 7 | . . . . . 3 . . . . . . . . . . . . 1 . . . . 1 . . . 1 . . 1 . . Interference 7 | . . . . . 1 . . . . . 1 . . . . . . . . . . . 1 1 . . . . . . . 3 Matter Decay 2 | . . . . . . . . . . . 2 . . . . . . . . . . . . . . . . . . . . . Short Circuit 1 | . . . . . 1 . . . . . . . . . . . . . . . . . . . . . . . . . . . Damage (minor) 1 | . . . . . 1 . . . . . . . . . . . . . . . . . . . . . . . . . . . Damage (major) 5 | . . . . . 5 . . . . . . . . . . . . . . . . . . . . . . . . . . . Damage (core) 1 | . . . . . 1 . . . . . . . . . . . . . . . . . . . . . . . . . . . Siege Activations 2 | . . . . . . . . . . . . . . . . . . . . . . . . . . . . 1 . 1 . . Total Turns 26 | . . . . . . . . . . . . . . . . . . . . . . . . . . . . 15 . 11 . . Longest Duration 15 | . . . . . . . . . . . . . . . . . . . . . . . . . . . . 15 . 11 . . Robots Corrupted 45 | . . . . . . . . 2 4 . 1 1 . 2 1 . . . . 3 . . . . 1 . 11 3 4 6 3 3 Combat Hostiles 41 | . . . . . . . . 2 4 . 1 1 . 1 1 . . . . 3 . . . . 1 . 9 3 4 6 2 3 Parts Fried 79 | . . . . . . . . 3 10 . 2 . . 3 . . . . . 5 . . . . . . 22 4 8 12 5 5 Impact Corruptions . | . . . . . . . . . . . . . . . . . . . . . . . . . . . . . . . . . Robots Melted . | . . . . . . . . . . . . . . . . . . . . . . . . . . . . . . . . . Combat Hostiles . | . . . . . . . . . . . . . . . . . . . . . . . . . . . . . . . . . Parts Melted 14 | . . . . 1 3 . . . . . . . . . 1 . . 3 . 4 . . . 1 . . . . 1 . . . Heat Transferred 8706 | . . . . 148 3145 . . . 124 . 1350 . . 100 . . . 1184 1147 870 . . 100 19 37 . . . . . . 482 Parts Sabotaged 4 | . . . . . . . . . . . . . . . . . . . . . . . . . . . 1 3 . . . . Parts Stolen 15 | . . . . . . . 11 . . 1 . . . 1 . . 2 . . . . . . . . . . . . . . . Parts Stripped . | . . . . . . . . . . . . . . . . . . . . . . . . . . . . . . . . . Power Chain Reactions 6 | . . . . . . 1 . . 1 . 1 . . 1 . . . . . 2 . . . . . . . . . . . . Missiles Intercepted . | . . . . . . . . . . . . . . . . . . . . . . . . . . . . . . . . . Alert | -11 -10 -10 -10 -9 -8 -7 -7 -7 -7 -6 -6 -6 -6 -6 -6 -6 -5 -5 -5 -5 -4 -4 -4 -4 -4 -4 -4 -3 -3 -2 -1 -1 ------- Run | Scr Mat Min Exi Min Mat Fac Low Low Dat Pro Fac Was Fac Low Low Zio Pro Fac Was Fac Fac Was Fac Ext Cet Arc Hub Res Tes Res Acc Com Peak Influence 3906 | . 185 147 . 75 840 581 . . . . 240 84 1599 . . . . 281 138 1090 1204 442 952 1128 1607 939 1982 1787 1197 1065 1274 3906 Average Influence 710 | . 93 88 . 55 210 447 . . . . 131 55 691 . . . . 113 122 588 899 407 482 802 1173 723 1102 1293 1080 698 894 2700 Maximum Alert Level 5 | . . . . . 3 2 . . . . 1 . 4 . . . . 1 . 3 4 2 3 4 5 3 5 5 4 3 4 5 Low Security (%) 26 | 100 100 100 . 100 70 . . . . . 86 100 20 . . . . 76 100 9 . . 11 . . . . . . . . . Level 1 10 | . . . . . 12 26 . . . . 13 . 5 . . . . 23 . 7 . 41 53 . . . 1 . . . . . Level 2 21 | . . . . . 5 73 . . . . . . 34 . . . . . . 69 34 58 . 39 7 53 9 . . 62 36 . Level 3 19 | . . . . . 11 . . . . . . . 15 . . . . . . 14 37 . 34 45 21 46 36 13 58 37 36 13 Level 4 18 | . . . . . . . . . . . . . 24 . . . . . . . 27 . . 15 62 . 50 81 41 . 26 13 Level 5 1 | . . . . . . . . . . . . . . . . . . . . . . . . . 8 . 1 5 . . . 11 High Security 2 | . . . . . . . . . . . . . . . . . . . . . . . . . . . . . . . . 61 Max Security . | . . . . . . . . . . . . . . . . . . . . . . . . . . . . . . . . . Squads Dispatched 100 | . 1 . . . 7 4 . . . . 4 . 5 . . . . 5 . 8 6 . 6 2 . . 11 11 8 10 2 10 Investigation 12 | . . . . . 1 . . . . . . . 1 . . . . 1 . 1 2 . 1 . . . 2 . . 2 . 1 Extermination 24 | . . . . . . 2 . . . . 2 . . . . . . 2 . 1 1 . 3 . . . 2 4 2 4 1 . Reinforcement 22 | . 1 . . . 3 2 . . . . 1 . 1 . . . . 2 . 3 . . . 1 . . 2 1 2 2 1 . Assault 37 | . . . . . 1 . . . . . . . 2 . . . . . . 3 3 . 2 1 . . 5 6 4 1 . 9 Garrison 5 | . . . . . 2 . . . . . 1 . 1 . . . . . . . . . . . . . . . . 1 . . Intercept . | . . . . . . . . . . . . . . . . . . . . . . . . . . . . . . . . . Construction Impeded 10 | . . . . . 1 . . . . . . . 1 . . . . 1 . 2 . . . 1 . . 1 1 . 2 . . Haulers Reinforced 6 | . . . . . . 2 . . . . . . . . . . . 1 . 1 . . . . . . . . 1 . 1 . Stealth | -11 -10 -10 -10 -9 -8 -7 -7 -7 -7 -6 -6 -6 -6 -6 -6 -6 -5 -5 -5 -5 -4 -4 -4 -4 -4 -4 -4 -3 -3 -2 -1 -1 --------- Run | Scr Mat Min Exi Min Mat Fac Low Low Dat Pro Fac Was Fac Low Low Zio Pro Fac Was Fac Fac Was Fac Ext Cet Arc Hub Res Tes Res Acc Com Distress Signals 31 | . . . . . 4 . . . . . 2 . 2 . . . . 2 . 3 . . 4 2 2 . 2 1 1 4 . 2 Communications Jammed 20 | . . . . . . . . . . . . . . . . . . . . . . . 2 . . . 5 13 . . . . Distress Signals 20 | . . . . . . . . . . . . . . . . . . . . . . . 2 . . . 5 13 . . . . Times Spotted 752 | . 9 3 . 3 52 31 13 8 4 11 36 . 16 19 4 . 14 26 6 55 45 6 30 24 26 . 65 57 51 48 14 76 Peak Tracking Total 20 | . 6 3 . 3 7 5 4 4 4 4 6 . 4 5 3 . 4 4 4 9 16 3 8 7 7 . 14 12 6 7 7 20 Tactical Retreats 70 | . . . . . 2 5 . 2 . 1 2 . . . . . 1 1 . 9 7 . 4 . . . 10 8 7 4 1 6 Traps | -11 -10 -10 -10 -9 -8 -7 -7 -7 -7 -6 -6 -6 -6 -6 -6 -6 -5 -5 -5 -5 -4 -4 -4 -4 -4 -4 -4 -3 -3 -2 -1 -1 ------- Run | Scr Mat Min Exi Min Mat Fac Low Low Dat Pro Fac Was Fac Low Low Zio Pro Fac Was Fac Fac Was Fac Ext Cet Arc Hub Res Tes Res Acc Com Traps Triggered 23 | . . . . . 1 . . . . . 2 . 1 1 . . . 2 . 3 1 . . 4 . . 1 3 1 1 1 1 Indirectly 2 | . . . . . . . . . . . . . . . . . . . . . . . . . . . 1 . . 1 . . Trap Hack Attempts . | . . . . . . . . . . . . . . . . . . . . . . . . . . . . . . . . . Triggered . | . . . . . . . . . . . . . . . . . . . . . . . . . . . . . . . . . Disarmed . | . . . . . . . . . . . . . . . . . . . . . . . . . . . . . . . . . Reprogrammed . | . . . . . . . . . . . . . . . . . . . . . . . . . . . . . . . . . Reused . | . . . . . . . . . . . . . . . . . . . . . . . . . . . . . . . . . Traps Extracted . | . . . . . . . . . . . . . . . . . . . . . . . . . . . . . . . . . Installed . | . . . . . . . . . . . . . . . . . . . . . . . . . . . . . . . . . Triggered 1 | . . . . . . . . . . . . . . . . . . . . . 1 . . . . . . . . . . . Machines | -11 -10 -10 -10 -9 -8 -7 -7 -7 -7 -6 -6 -6 -6 -6 -6 -6 -5 -5 -5 -5 -4 -4 -4 -4 -4 -4 -4 -3 -3 -2 -1 -1 ---------- Run | Scr Mat Min Exi Min Mat Fac Low Low Dat Pro Fac Was Fac Low Low Zio Pro Fac Was Fac Fac Was Fac Ext Cet Arc Hub Res Tes Res Acc Com Machines Disabled 100 | . . 1 . 1 9 4 1 . 1 . 4 . 13 . . . . 2 . 5 16 . 1 2 2 1 20 1 1 2 6 7 Max in Single Turn 11 | . . 1 . 1 5 1 1 . 1 . 1 . . . . . . 1 . 1 1 . . . 1 . 11 1 1 1 2 2 Garrison Access 6 | . . . . . 1 . . . . . 1 . 1 . . . . . . . . . . . . . 1 2 . . . . Phase Generator 1 | . . . . . . . . . . . . . . . . . . . . . . . . . . . . . . . . 1 Network Hub 2 | . . . . . . . . . . . . . . . . . . . . . . . . . . . 2 . . . . . Machines Sabotaged . | . . . . . . . . . . . . . . . . . . . . . . . . . . . . . . . . . Garrisons Compromised . | . . . . . . . . . . . . . . . . . . . . . . . . . . . . . . . . . Overloaded Fab Kills . | . . . . . . . . . . . . . . . . . . . . . . . . . . . . . . . . . Fab Network Shutdowns 3 | . . . . . . . . . . . . . . . . . . . . 1 . . 1 . . . . 1 . . . . Hacking | -11 -10 -10 -10 -9 -8 -7 -7 -7 -7 -6 -6 -6 -6 -6 -6 -6 -5 -5 -5 -5 -4 -4 -4 -4 -4 -4 -4 -3 -3 -2 -1 -1 --------- Run | Scr Mat Min Exi Min Mat Fac Low Low Dat Pro Fac Was Fac Low Low Zio Pro Fac Was Fac Fac Was Fac Ext Cet Arc Hub Res Tes Res Acc Com Machines Accessed 46 | . 1 . 1 . 4 5 1 . 3 . 7 . 2 . 1 . . 1 . 3 3 . 4 . . . . 6 1 1 1 1 Terminals 15 | . 1 . . . 4 4 . . . . 4 . 1 . 1 . . . . . . . . . . . . . . . . . Fabricators 8 | . . . . . . . . . . . . . . . . . . 1 . 2 2 . 1 . . . . 2 . . . . Repair Stations 13 | . . . . . . 1 . . . . 2 . . . . . . . . 1 1 . 3 . . . . 2 1 . 1 1 Recycling Units 1 | . . . . . . . . . . . . . . . . . . . . . . . . . . . . . . 1 . . Scanalyzers . | . . . . . . . . . . . . . . . . . . . . . . . . . . . . . . . . . Garrison Access 4 | . . . . . . . . . . . 1 . 1 . . . . . . . . . . . . . . 2 . . . . Total Hacks 170 | . 1 . 1 . 8 11 1 . 21 . 21 . 7 . 1 . . 8 . 14 7 . 22 . . . . 20 12 3 4 8 Successful 110 | . . . 1 . 3 4 1 . 21 . 15 . 4 . 1 . . 6 . 9 3 . 14 . . . . 14 6 2 2 4 Failed 60 | . 1 . . . 5 7 . . . . 6 . 3 . . . . 2 . 5 4 . 8 . . . . 6 6 1 2 4 Catastrophic 11 | . 1 . . . 3 2 . . . . . . . . . . . . . . 1 . . . . . . 1 1 . 2 . Database Lockouts . | . . . . . . . . . . . . . . . . . . . . . . . . . . . . . . . . . Manual 205 | . . . 1 . 4 1 . . . . 3 . 3 . . . . 8 . 18 36 . 29 24 10 . 20 10 5 11 15 7 Terminals 36 | . 1 . . . 8 9 . . . . 12 . 5 . 1 . . . . . . . . . . . . . . . . . Fabricators 33 | . . . . . . . . . . . . . . . . . . 8 . 9 4 . 6 . . . . 6 . . . . Repair Stations 69 | . . . . . . 2 . . . . 8 . . . . . . . . 5 3 . 16 . . . . 11 12 . 4 8 Recycling Units 3 | . . . . . . . . . . . . . . . . . . . . . . . . . . . . . . 3 . . Scanalyzers . | . . . . . . . . . . . . . . . . . . . . . . . . . . . . . . . . . Garrison Access 6 | . . . . . . . . . . . 1 . 2 . . . . . . . . . . . . . . 3 . . . . Terminal Hacks 37 | . . . 1 . 2 2 1 . 21 . 6 . 3 . 1 . . . . . . . . . . . . . . . . . Record 7 | . . . . . . . . . 5 . 1 . . . 1 . . . . . . . . . . . . . . . . . Part Schematic 8 | . . . . . . . . . 7 . . . 1 . . . . . . . . . . . . . . . . . . . Robot Schematic 6 | . . . . . . . . . 6 . . . . . . . . . . . . . . . . . . . . . . . Prototype ID Bank 3 | . . . . . . . . . 3 . . . . . . . . . . . . . . . . . . . . . . . Open Door 1 | . . . . . . . 1 . . . . . . . . . . . . . . . . . . . . . . . . . Branch Access Points 4 | . . . . . 1 1 . . . . 1 . 1 . . . . . . . . . . . . . . . . . . . Emergency Access Points 1 | . . . . . . . . . . . 1 . . . . . . . . . . . . . . . . . . . . . Terminal Index 1 | . . . . . . 1 . . . . . . . . . . . . . . . . . . . . . . . . . . Unreport Threat 1 | . . . . . . . . . . . 1 . . . . . . . . . . . . . . . . . . . . . Locate Traps 1 | . . . . . . . . . . . 1 . . . . . . . . . . . . . . . . . . . . . Hauler Manifests 2 | . . . . . . . . . . . 1 . 1 . . . . . . . . . . . . . . . . . . . Zone Layout 1 | . . . . . 1 . . . . . . . . . . . . . . . . . . . . . . . . . . . EX-Prototype ID Bank 1 | . . . 1 . . . . . . . . . . . . . . . . . . . . . . . . . . . . . Fabricator Hacks 23 | . . . . . . . . . . . . . . . . . . 6 . 6 2 . 4 . . . . 5 . . . . Load Schematic 9 | . . . . . . . . . . . . . . . . . . 3 . 2 1 . 1 . . . . 2 . . . . Build 14 | . . . . . . . . . . . . . . . . . . 3 . 4 1 . 3 . . . . 3 . . . . Repair Station Hacks 40 | . . . . . . 2 . . . . 7 . . . . . . . . 2 1 . 9 . . . . 7 6 . 2 4 Scan Component 23 | . . . . . . 1 . . . . 3 . . . . . . . . 1 1 . 7 . . . . 4 3 . 1 2 Repair 16 | . . . . . . 1 . . . . 3 . . . . . . . . 1 . . 2 . . . . 3 3 . 1 2 Refit 1 | . . . . . . . . . . . 1 . . . . . . . . . . . . . . . . . . . . . Recycling Unit Hacks 2 | . . . . . . . . . . . . . . . . . . . . . . . . . . . . . . 2 . . Process 1 | . . . . . . . . . . . . . . . . . . . . . . . . . . . . . . 1 . . Retrieve Matter 1 | . . . . . . . . . . . . . . . . . . . . . . . . . . . . . . 1 . . Scanalyzer . | . . . . . . . . . . . . . . . . . . . . . . . . . . . . . . . . . Garrison Access Hacks 3 | . . . . . . . . . . . 1 . . . . . . . . . . . . . . . . 2 . . . . Seal Access 3 | . . . . . . . . . . . 1 . . . . . . . . . . . . . . . . 2 . . . . Unauthorized Hacks 5 | . . . . . 1 . . . . . 1 . 1 . . . . . . 1 . . 1 . . . . . . . . . Terminals 2 | . . . . . 1 . . . . . 1 . . . . . . . . . . . . . . . . . . . . . Assimilate 1 | . . . . . 1 . . . . . . . . . . . . . . . . . . . . . . . . . . . Botnet 1 | . . . . . . . . . . . 1 . . . . . . . . . . . . . . . . . . . . . Fabricators 2 | . . . . . . . . . . . . . . . . . . . . 1 . . 1 . . . . . . . . . Siphon 2 | . . . . . . . . . . . . . . . . . . . . 1 . . 1 . . . . . . . . . Repair Stations . | . . . . . . . . . . . . . . . . . . . . . . . . . . . . . . . . . Recycling Units . | . . . . . . . . . . . . . . . . . . . . . . . . . . . . . . . . . Scanalyzers . | . . . . . . . . . . . . . . . . . . . . . . . . . . . . . . . . . Garrison Access 1 | . . . . . . . . . . . . . 1 . . . . . . . . . . . . . . . . . . . Jam 1 | . . . . . . . . . . . . . 1 . . . . . . . . . . . . . . . . . . . Data Cores Recovered 1 | . 1 . . . . . . . . . . . . . . . . . . . . . . . . . . . . . . . Used . | . . . . . . . . . . . . . . . . . . . . . . . . . . . . . . . . . Hacking Detections 33 | . 1 . . . 4 4 . . . . 6 . 1 . . . . 1 . 2 2 . 4 . . . . 4 1 1 1 1 Full Trace Events 4 | . . . . . . . . . . . . . . . . . . 1 . . 2 . 1 . . . . . . . . . Feedback Events . | . . . . . . . . . . . . . . . . . . . . . . . . . . . . . . . . . Feedback Blocked . | . . . . . . . . . . . . . . . . . . . . . . . . . . . . . . . . . Robot Schematics Acquired 6 | . . . . . . . . . 6 . . . . . . . . . . . . . . . . . . . . . . . Robots Built . | . . . . . . . . . . . . . . . . . . . . . . . . . . . . . . . . . Matter . | . . . . . . . . . . . . . . . . . . . . . . . . . . . . . . . . . Time . | . . . . . . . . . . . . . . . . . . . . . . . . . . . . . . . . . Total Robot Build Rating . | . . . . . . . . . . . . . . . . . . . . . . . . . . . . . . . . . Part Schematics Acquired 76 | . . . . . . . . . 7 . . . 1 . . . . . . . 12 . . 9 13 . 12 . 12 . 10 . Parts Built 17 | . . . . . . . . . . . . . . . . . . 4 . 6 1 . 3 . . . . 3 . . . . Matter 3675 | . . . . . . . . . . . . . . . . . . 760 . 854 285 . 789 . . . . 987 . . . . Time 1408 | . . . . . . . . . . . . . . . . . . 399 . 342 152 . 279 . . . . 236 . . . . Total Part Build Rating 95 | . . . . . . . . . . . . . . . . . . 20 . 30 5 . 21 . . . . 19 . . . . Parts Repaired 16 | . . . . . . 1 . . . . 3 . . . . . . . . 1 . . 2 . . . . 3 3 . 1 2 Time 504 | . . . . . . 38 . . . . 120 . . . . . . . . 13 . . 96 . . . . 94 80 . 26 37 Parts Recycled . | . . . . . . . . . . . . . . . . . . . . . . . . . . . . . . . . . Recycled Matter 46 | . . . . . . . . . . . . . . . . . . . . . . . . . . . . . . 46 . . Retrieved Matter 46 | . . . . . . . . . . . . . . . . . . . . . . . . . . . . . . 46 . . Retrieved Components . | . . . . . . . . . . . . . . . . . . . . . . . . . . . . . . . . . Parts Scanalyzed . | . . . . . . . . . . . . . . . . . . . . . . . . . . . . . . . . . Part Schematics Acquired . | . . . . . . . . . . . . . . . . . . . . . . . . . . . . . . . . . Parts Damaged . | . . . . . . . . . . . . . . . . . . . . . . . . . . . . . . . . . Bothacking | -11 -10 -10 -10 -9 -8 -7 -7 -7 -7 -6 -6 -6 -6 -6 -6 -6 -5 -5 -5 -5 -4 -4 -4 -4 -4 -4 -4 -3 -3 -2 -1 -1 ------------ Run | Scr Mat Min Exi Min Mat Fac Low Low Dat Pro Fac Was Fac Low Low Zio Pro Fac Was Fac Fac Was Fac Ext Cet Arc Hub Res Tes Res Acc Com Used RIF Installer . | . . . . . . . . . . . . . . . . . . . . . . . . . . . . . . . . . Robots Hacked 8 | . . . . . . . . . . . . . . . . . . 1 . 1 . . . . . . . 1 . 2 . 3 Non-combat 1 | . . . . . . . . . . . . . . . . . . . . 1 . . . . . . . . . . . . Combat 7 | . . . . . . . . . . . . . . . . . . 1 . . . . . . . . . 1 . 2 . 3 Robot Hacks Applied 8 | . . . . . . . . . . . . . . . . . . 1 . 1 . . . . . . . 1 . 2 . 3 parse_system 8 | . . . . . . . . . . . . . . . . . . 1 . 1 . . . . . . . 1 . 2 . 3 Relay Couplers Released 2 | . . . . . 2 . . . . . . . . . . . . . . . . . . . . . . . . . . . Machine Destruction 2 | . . . . . 2 . . . . . . . . . . . . . . . . . . . . . . . . . . . Robots Rewired 15 | . . . . . . . . . . . . . . . . . . . . . . . . 14 . . 1 . . . . . Allies Hacked 5 | . . . . . . . . . . . . . . . . . . 1 . . 1 . . . . . . . . . . 3 Hacks Repelled . | . . . . . . . . . . . . . . . . . . . . . . . . . . . . . . . . . Allies | -11 -10 -10 -10 -9 -8 -7 -7 -7 -7 -6 -6 -6 -6 -6 -6 -6 -5 -5 -5 -5 -4 -4 -4 -4 -4 -4 -4 -3 -3 -2 -1 -1 -------- Run | Scr Mat Min Exi Min Mat Fac Low Low Dat Pro Fac Was Fac Low Low Zio Pro Fac Was Fac Fac Was Fac Ext Cet Arc Hub Res Tes Res Acc Com Total Allies 132 | . . . . . . . . . . . . 20 . . . 4 . 5 . 2 8 1 10 25 8 3 5 1 . 6 8 26 Largest Group 20 | . . . . . . . . . . . . 20 20 13 1 4 4 3 . 2 5 1 5 17 17 17 11 1 . 3 4 20 Highest-Rated Group 1977 | . . . . . . . . . . . . 828 828 538 38 149 149 204 . 170 323 46 233 972 1196 1388 794 135 . 276 273 1977 Highest-Rated Ally 268 | . . . . . . . . . . . . 50 50 50 38 39 39 85 . 85 103 46 103 156 156 150 103 135 . 122 122 268 Zionite Dispatches 28 | . . . . . . . . . . . . . . . . . . 2 . 2 4 . 5 3 2 . 2 1 . 3 4 . Heavy 9 | . . . . . . . . . . . . . . . . . . 1 . 1 1 . 1 2 1 . . . . 1 1 . Light 1 | . . . . . . . . . . . . . . . . . . 1 . . . . . . . . . . . . . . Recon 3 | . . . . . . . . . . . . . . . . . . . . 1 1 . 1 . . . . . . . . . Fire 5 | . . . . . . . . . . . . . . . . . . . . . 1 . 1 1 . . 1 . . . 1 . Hacker 3 | . . . . . . . . . . . . . . . . . . . . . 1 . 1 . . . . . . 1 . . Hero 1 | . . . . . . . . . . . . . . . . . . . . . . . . . . . . 1 . . . . Kinetic Resupply 1 | . . . . . . . . . . . . . . . . . . . . . . . . . 1 . . . . . . . Explosive Resupply 1 | . . . . . . . . . . . . . . . . . . . . . . . . . . . . . . . 1 . Melee Resupply 1 | . . . . . . . . . . . . . . . . . . . . . . . . . . . 1 . . . . . Offense Resupply 1 | . . . . . . . . . . . . . . . . . . . . . . . . . . . . . . . 1 . Hacking Resupply 1 | . . . . . . . . . . . . . . . . . . . . . . . 1 . . . . . . . . . Zionite Resupply 1 | . . . . . . . . . . . . . . . . . . . . . . . . . . . . . . 1 . . Total Orders 14 | . . . . . . . . . . . . . . . . . . . . 2 1 . 3 . 1 . 2 . 1 1 3 . STAY 2 | . . . . . . . . . . . . . . . . . . . . . . . . . . . 1 . 1 . . . GOTO 2 | . . . . . . . . . . . . . . . . . . . . . . . 1 . . . . . . . 1 . DROP 6 | . . . . . . . . . . . . . . . . . . . . . . . 1 . 1 . 1 . . 1 2 . EXPLORE 4 | . . . . . . . . . . . . . . . . . . . . 2 1 . 1 . . . . . . . . . Ally Attacks 976 | . . . . . . . . . . . . . 78 83 . . 23 54 . 9 39 21 40 100 116 27 101 17 . 36 25 207 Total Damage 46297 | . . . . . . . . . . . . . 3401 2430 . . 695 1668 . 536 2815 599 1937 4437 4155 1181 3541 1755 . 2630 1370 13147 Kills 245 | . . . . . . . . . . . . . 25 17 . . 2 10 . 2 12 . 13 25 32 7 18 5 . 9 9 59 Allies Corrupted 14 | . . . . . . . . . . . . . 1 3 . . . . . . . . . 2 . . 1 . . . . 7 Allies Melted . | . . . . . . . . . . . . . . . . . . . . . . . . . . . . . . . . . Intel | -11 -10 -10 -10 -9 -8 -7 -7 -7 -7 -6 -6 -6 -6 -6 -6 -6 -5 -5 -5 -5 -4 -4 -4 -4 -4 -4 -4 -3 -3 -2 -1 -1 ------- Run | Scr Mat Min Exi Min Mat Fac Low Low Dat Pro Fac Was Fac Low Low Zio Pro Fac Was Fac Fac Was Fac Ext Cet Arc Hub Res Tes Res Acc Com Robot Analysis Total . | . . . . . . . . . . . . . . . . . . . . . . . . . . . . . . . . . Derelict Logs Recovered 6 | . . 1 . . . . 2 1 . 1 . . . . . 1 . . . . . . . . . . . . . . . . Drone Launches 7 | . . . . . . . . . . . . . . . . . . . . . 2 . 2 . . . . . 3 . . . Drone Recoveries . | . . . . . . . . . . . . . . . . . . . . . . . . . . . . . . . . . Zionite Intel Received 28 | . . . . . . . . . . . . . . . . . . 1 . 2 7 . 4 4 1 . 3 1 1 1 2 1 Main Access 1 | . . . . . . . . . . . . . . . . . . . . . . . . 1 . . . . . . . . Branch Access 3 | . . . . . . . . . . . . . . . . . . . . . 1 . . . . . 1 . . 1 . . Emergency Access 2 | . . . . . . . . . . . . . . . . . . . . . 1 . . . . . . . . . . 1 Guard Positions 1 | . . . . . . . . . . . . . . . . . . . . . . . 1 . . . . . . . . . Prototype Stockpiles 4 | . . . . . . . . . . . . . . . . . . . . 1 1 . . 1 . . 1 . . . . . Component Schematics 1 | . . . . . . . . . . . . . . . . . . . . . . . . . 1 . . . . . . . Prototype Schematics 5 | . . . . . . . . . . . . . . . . . . . . . 1 . . 1 . . 1 . 1 . 1 . Unaware Analyses 5 | . . . . . . . . . . . . . . . . . . 1 . . 1 . 1 . . . . 1 . . 1 . Active Terminals 2 | . . . . . . . . . . . . . . . . . . . . . 1 . 1 . . . . . . . . . Depthwide Sectors/0 1 | . . . . . . . . . . . . . . . . . . . . . . . . 1 . . . . . . . . Depthwide Sectors/-1 3 | . . . . . . . . . . . . . . . . . . . . 1 1 . 1 . . . . . . . . . Exploration | -11 -10 -10 -10 -9 -8 -7 -7 -7 -7 -6 -6 -6 -6 -6 -6 -6 -5 -5 -5 -5 -4 -4 -4 -4 -4 -4 -4 -3 -3 -2 -1 -1 ------------- Run | Scr Mat Min Exi Min Mat Fac Low Low Dat Pro Fac Was Fac Low Low Zio Pro Fac Was Fac Fac Was Fac Ext Cet Arc Hub Res Tes Res Acc Com Turns Passed 27816 | 54 143 278 437 56 1537 1379 1792 996 306 642 1981 608 427 804 479 1616 496 1121 129 1547 922 120 1548 796 685 69 1102 2009 914 1564 357 902 Spaces Moved 16633 | 55 102 326 423 17 537 565 281 526 126 397 1078 361 247 462 282 888 271 693 169 971 1032 111 1172 436 332 44 592 1408 591 804 380 954 Core 8 | 8 . . . . . . . . . . . . . . . . . . . . . . . . . . . . . . . . Treads 4280 | . . . . 17 479 504 . . . . 85 361 247 462 282 888 271 190 . . . . . . . . 45 205 160 31 . 53 Legs 2231 | . . . . . 58 . 56 526 126 397 993 . . . . . . . . . . . . . . . . . . 75 . . Wheels 1584 | 47 102 326 423 . . 61 225 . . . . . . . . . . . . . . . . . . . . . . 400 . . Hover 8403 | . . . . . . . . . . . . . . . . . . 503 169 971 1032 111 1172 436 332 44 547 1203 431 298 380 774 Flight 127 | . . . . . . . . . . . . . . . . . . . . . . . . . . . . . . . . 127 Fastest Speed 40 | 50 80 80 80 200 200 140 140 150 150 150 120 160 160 160 160 160 160 60 60 53 68 68 63 53 53 53 53 53 63 55 46 40 Average Speed 109 | 75 80 80 98 200 226 200 147 169 155 150 130 160 160 160 160 160 160 111 60 79 68 68 69 97 53 53 80 80 87 97 50 52 Slowest Speed 290 | 90 80 80 120 200 280 280 180 210 240 150 160 160 160 160 160 160 160 160 60 290 142 68 142 131 53 53 180 210 180 180 55 165 Overloaded Moves . | . . . . . . . . . . . . . . . . . . . . . . . . . . . . . . . . . Propulsion Burnouts . | . . . . . . . . . . . . . . . . . . . . . . . . . . . . . . . . . Robots Hopped . | . . . . . . . . . . . . . . . . . . . . . . . . . . . . . . . . . Cave-ins Triggered 2 | . . . . . . . . . . . . . . . . . . . . . . . . 1 . . . 1 . . . . Exploration Rate (%) 47 | 3 25 69 61 6 47 16 50 67 78 67 27 95 13 69 45 88 50 20 86 22 28 90 27 66 77 59 49 30 80 16 11 32 Regions Visited 32 Branch Regions 17 Pre-discovered Areas 29 | . . 1 . . . . . 1 . . . . . . . 1 . . . 9 4 . 4 9 . . . . . . . . Known Exits Taken 13 | . . . . . . 1 1 . . . . . 1 . . . 1 . . . . . 1 1 1 1 1 1 1 1 1 . Unknown Exits Taken 13 | 1 1 1 1 1 1 . . 1 1 1 . . . 1 1 1 . . . 1 . . . . . . . . . . . . Scrap Searched 13 | . . 1 . . . . 1 3 . 3 . . . 2 1 1 1 . . . . . . . . . . . . . . . Spaces Dug 181 | . . . . . . . . 4 . 6 1 . . . . . . 2 . 18 16 . 37 9 . 1 8 34 13 12 11 9 Terrain Destroyed 1180 | . . . . 18 87 36 1 6 . 58 32 . . 8 . . 76 13 5 102 16 85 38 14 . 1 335 40 15 22 34 138 Melee 134 | . . . . . . . . 3 . . . . . . . . . . . 11 16 . 37 3 . 1 8 34 13 8 . . Projectile 131 | . . . . . 29 4 1 3 . 1 6 . . . . . 3 13 5 28 . . 1 11 . . . . 2 14 4 6 AOE 915 | . . . . 18 58 32 . . . 57 26 . . 8 . . 73 . . 63 . 85 . . . . 327 6 . . 30 132 Actions | -11 -10 -10 -10 -9 -8 -7 -7 -7 -7 -6 -6 -6 -6 -6 -6 -6 -5 -5 -5 -5 -4 -4 -4 -4 -4 -4 -4 -3 -3 -2 -1 -1 --------- Run | Scr Mat Min Exi Min Mat Fac Low Low Dat Pro Fac Was Fac Low Low Zio Pro Fac Was Fac Fac Was Fac Ext Cet Arc Hub Res Tes Res Acc Com Total 24421 | 64 124 335 444 30 748 735 1606 580 221 427 1492 388 276 503 300 1083 307 1015 186 1598 1181 137 1768 763 827 87 1022 2126 882 1371 526 1269 Wait 4894 | . 1 4 . . 39 74 1232 7 55 1 226 6 20 15 . 181 . 235 1 379 66 1 389 138 473 43 202 488 118 272 94 134 Move 16601 | 54 101 325 422 16 536 564 280 525 125 396 1078 360 246 461 281 887 270 693 168 970 1032 110 1171 434 331 43 591 1407 590 803 379 952 Hop . | . . . . . . . . . . . . . . . . . . . . . . . . . . . . . . . . . Pick Up 281 | 4 2 1 11 . 28 11 17 5 6 6 21 3 2 1 . 4 4 12 2 19 5 4 24 . 1 . 15 26 7 15 8 17 Fast Attach 230 | 6 1 . 2 . 16 5 1 2 7 1 18 4 . . 2 2 . 9 . 17 9 . 9 6 1 . 10 25 18 43 6 10 Attach 180 | . . . . 6 14 6 10 . 6 1 5 . 1 . . . . 5 1 11 2 1 10 4 . . 6 25 18 23 2 23 Detach 134 | . . . 1 1 16 2 2 . . . 2 1 1 . . . . 5 . 7 1 . 7 4 . . 6 21 22 18 4 13 Swap 224 | . . . 2 . 4 3 . 2 5 3 7 2 . 5 3 4 . 8 . 31 11 1 37 12 11 . 20 21 14 6 6 6 Drop 284 | . . 1 6 . 21 6 21 1 5 5 15 7 2 . 3 5 4 17 3 18 10 2 21 6 2 . 25 14 17 23 8 16 Fire 856 | . 19 4 . 7 73 64 16 29 11 14 98 5 4 21 11 . 29 31 11 96 . 18 2 13 8 . 48 10 11 95 19 89 Melee 594 | . . . . . . . 27 9 1 . 22 . . . . . . . . 50 44 . 97 19 . 1 98 89 65 72 . . Ram 2 | . . . . . . . . . . . . . . . . . . . . . . . . . . . . . 1 1 . . Kick . | . . . . . . . . . . . . . . . . . . . . . . . . . . . . . . . . . Crush 1 | . . . . . 1 . . . . . . . . . . . . . . . . . . . . . . . . . . . Escape Stasis 62 | . . . . . . . . . . . . . . . . . . . . . . . . 53 . . . . . . . 9 Rewire 75 | . . . . . . . . . . . . . . . . . . . . . . . . 74 . . 1 . . . . . Trap . | . . . . . . . . . . . . . . . . . . . . . . . . . . . . . . . . . Miscellaneous 3 | . . . . . . . . . . . . . . . . . . . . . 1 . 1 . . . . . 1 . . . Route ------- -11/Scrapyard -10/Materials -10/Mines -10/Exiles -9/Mines -8/Materials -7/Factory (discovered 3 exits: Sto / *Low x2) -7/Lower Caves -7/Lower Caves (discovered 2 exits: *Fac / *Dat) -7/Data Miner -6/Proximity Caves -6/Factory (discovered 4 exits: *Fac x2 / *Low x2) -6/Waste -6/Factory (discovered 2 exits: *Low x2) -6/Lower Caves -6/Lower Caves -6/Zion (discovered 2 exits: [Dee] / [*Pro]) -5/Proximity Caves -5/Factory -5/Waste -5/Factory (discovered 2 exits: *Fac / [*Upp]) -4/Factory (discovered 5 exits: Res / *Upp x2 / *Ext x2) -4/Waste -4/Factory -4/Extension (discovered 3 exits: *Res x2 / *Cet) -4/Cetus (discovered 2 exits: *Res / *Arc) -4/Archives -4/Hub_04(d) (discovered 4 exits: *Res x4) -3/Research (discovered 2 exits: *Arm / *Tes) -3/Testing -2/Research (discovered 3 exits: *Acc / Qua x2) -1/Access -1/Command To Epsilon Eridani History --------- Turn | Location | Event 21 | -11/Scrapyard | Discovered new exit (range 15) 55 | -11/Scrapyard | Entered Materials 166 | -10/Materials | Discovered new exit (range 15) 198 | -10/Materials | Entered Mines 256 | -10/Mines | Learned location of Zion (-6) 265 | -10/Mines | Met a Derelict bent on vengeance 300 | -10/Mines | Build established: Mutant 472 | -10/Mines | Deemed a non-threat by the Exiles lab entrance 472 | -10/Mines | Discovered new exit (range 5) 476 | -10/Mines | Entered Exiles 497 | -10/Exiles | Met 8R-AWN 509 | -10/Exiles | Met EX-HEX 531 | -10/Exiles | Met EX-BIN 544 | -10/Exiles | Aligned with FarCom system 545 | -10/Exiles | Given EX-Vault access code 565 | -10/Exiles | Opened EX-Vault 576 | -10/Exiles | Found YOLO Cannon 581 | -10/Exiles | Found AWS/Thermal 598 | -10/Exiles | Warned to stay clear of 0b10 Research branches 624 | -10/Exiles | Met EX-DEC 797 | -10/Exiles | Found AWS/Autocannon 900 | -10/Exiles | Discovered new exit (range 11) 913 | -10/Exiles | Stole three prototypes: AWS/Thermal, YOLO Cannon, AWS/Autocannon 913 | -10/Exiles | Entered Mines 922 | -9/Mines | System corruption reached 10% 960 | -9/Mines | Lost 5 parts (1p2n2w) 961 | -9/Mines | Discovered new exit (range 4) 967 | -9/Mines | Build established: Hauler-Mutant 969 | -9/Mines | Entered Materials 969 | -8/Materials | Evolved 4 slots: Utility x4 2082 | -8/Materials | Lost 3 parts (1p1n1w) 2144 | -8/Materials | Garrison activated, responded to threat 2207 | -8/Materials | Core integrity fell below 50% 2210 | -8/Materials | Lost 3 parts (2u1w) 2368 | -8/Materials | Destroyed 9 combat bots 2459 | -8/Materials | Discovered new exit (range 16) 2506 | -8/Materials | Entered Factory 2506 | -7/Factory | Evolved 2 slots: Utility x2 2508 | -7/Factory | FarCom data flow suspended 3378 | -7/Factory | Identified exit to Storage 3378 | -7/Factory | Identified exit to Lower Caves 3863 | -7/Factory | Repaired Imp. Utility Shielding 3885 | -7/Factory | Entered Lower Caves 3896 | -7/Lower Caves | Attacked by a delusional Derelict stockpiling parts 3941 | -7/Lower Caves | Encountered a Warlord checkpoint 5301 | -7/Lower Caves | Flak Gun stolen by Master Thief 5305 | -7/Lower Caves | Mak. Shrapnel Gun stolen by Master Thief 5358 | -7/Lower Caves | Identified exit to Lower Caves 5359 | -7/Lower Caves | Spotted SC-9RH(f) 5360 | -7/Lower Caves | Encountered a Master Thief 5377 | -7/Lower Caves | Destroyed SC-9RH(f) 5387 | -7/Lower Caves | Learned location of 1 exit from Factory 5486 | -7/Lower Caves | Spotted 3Z-BNS(f) 5487 | -7/Lower Caves | Spotted 2K-B20(f) 5488 | -7/Lower Caves | Encountered a Master Thief 5488 | -7/Lower Caves | Encountered a Master Thief 5495 | -7/Lower Caves | Master Tearclaws stolen by Master Thief 5495 | -7/Lower Caves | Spotted 22-7EX(f) 5495 | -7/Lower Caves | Lgt. Angular Momentum Engine stolen by Master Thief 5496 | -7/Lower Caves | Encountered a Master Thief 5497 | -7/Lower Caves | Arm. Huge Wheel stolen by Master Thief 5505 | -7/Lower Caves | Encountered a Master Thief 5510 | -7/Lower Caves | Med. Reactive Plating stolen by Master Thief 5519 | -7/Lower Caves | Spotted FU-7H2(f) 5520 | -7/Lower Caves | Encountered a Master Thief 5523 | -7/Lower Caves | Weapon Cycler stolen by Master Thief 5532 | -7/Lower Caves | Spotted 94-Q63(f) 5533 | -7/Lower Caves | Encountered a Master Thief 5539 | -7/Lower Caves | Spotted DV-QKR(f) 5540 | -7/Lower Caves | Encountered a Master Thief 5543 | -7/Lower Caves | Coolant Injector stolen by Master Thief 5544 | -7/Lower Caves | Spotted 68-RA5(f) 5545 | -7/Lower Caves | Encountered a Master Thief 5548 | -7/Lower Caves | Lrn. Terrain Scanner stolen by Master Thief 5549 | -7/Lower Caves | Adv. Terrain Scan Processor stolen by Master Thief 5553 | -7/Lower Caves | Spotted 2Z-NMU(f) 5554 | -7/Lower Caves | Encountered a Master Thief 5568 | -7/Lower Caves | Imp. Utility Shielding stolen by Master Thief 5677 | -7/Lower Caves | Entered another Lower Caves area 5753 | -7/Lower Caves | Discovered new exit (range 15) 5793 | -7/Lower Caves | Build established: Mutant 5886 | -7/Lower Caves | Spotted B-75 Beast 5969 | -7/Lower Caves | Attracted the attention of an 0b10 checkpoint 6658 | -7/Lower Caves | Discovered new exit (range 7) 6662 | -7/Lower Caves | Build established: Scavenger-Mutant 6673 | -7/Lower Caves | Entered Data Miner 6673 | -7/Data Miner | Discovered new exit (range 6) 6702 | -7/Data Miner | Met Data Miner 6769 | -7/Data Miner | Received God Mode back door access code from Data Miner 6802 | -7/Data Miner | Data Conduit disabled 6841 | -7/Data Miner | Core integrity fell below 50% 6887 | -7/Data Miner | Lost 8 parts (2n5u1w) 6979 | -7/Data Miner | Entered Proximity Caves 7024 | -6/Proximity Caves | Spotted B-75 Beast 7195 | -6/Proximity Caves | Attracted the attention of an 0b10 checkpoint 7356 | -6/Proximity Caves | Learned Factory terminal intel 7583 | -6/Proximity Caves | Spotted I7-8GD(f) 7584 | -6/Proximity Caves | Encountered a Master Thief 7586 | -6/Proximity Caves | Antimatter Reactor stolen by Master Thief 7618 | -6/Proximity Caves | Discovered new exit (range 2) 7621 | -6/Proximity Caves | Entered Factory 7621 | -6/Factory | Evolved 2 slots: Propulsion x2 7622 | -6/Factory | Identified exit to Factory 7623 | -6/Factory | Loaded intel: 20 terminal locations 7981 | -6/Factory | Repaired Med. Storage Unit 8051 | -6/Factory | Repaired Lyr. Medium Armor Plating 8086 | -6/Factory | Discovered exit to Factory (range 3) 8319 | -6/Factory | Garrison activated, responded to threat 8427 | -6/Factory | Lost 4 parts (2u2w) 9027 | -6/Factory | Repaired Enh. Flexi-carbon Leg 9067 | -6/Factory | Identified exit to Lower Caves 9501 | -6/Factory | Spotted B-75 Beast 9602 | -6/Factory | Sucked down chute 9602 | -6/Factory | Entered Waste 9603 | -6/Waste | Joined by Warlord forces that had cleared the area 9744 | -6/Waste | Build established: Hacker-Mutant 9848 | -6/Waste | Found Prototype Device 9848 | -6/Waste | Identified Exp. ECM Suite 9917 | -6/Waste | Discovered new exit (range 12) 10210 | -6/Waste | Entered Factory 10210 | -6/Factory | Accompanied by 20 allies 10492 | -6/Factory | Garrison activated, responded to threat 10560 | -6/Factory | First assault squad dispatched 10637 | -6/Factory | Entered Lower Caves 10637 | -6/Lower Caves | Accompanied by 13 allies 10707 | -6/Lower Caves | Ambushed by wild Derelicts 10837 | -6/Lower Caves | Spotted HJ-QIG(f) 10839 | -6/Lower Caves | Encountered a Master Thief 10841 | -6/Lower Caves | YOLO Cannon stolen by Master Thief 10892 | -6/Lower Caves | Spotted 81-DXA(f) 10893 | -6/Lower Caves | Encountered a Master Thief 10901 | -6/Lower Caves | Allies destroyed 81-DXA(f) 10908 | -6/Lower Caves | Spotted SX-WQC(f) 10909 | -6/Lower Caves | Encountered a Master Thief 10910 | -6/Lower Caves | Build established: Hauler-Mutant 10919 | -6/Lower Caves | Allies destroyed SX-WQC(f) 11289 | -6/Lower Caves | Attracted the attention of an 0b10 checkpoint 11427 | -6/Lower Caves | Discovered new exit (range 7) 11441 | -6/Lower Caves | Entered another Lower Caves area 11441 | -6/Lower Caves | Accompanied by 1 ally 11600 | -6/Lower Caves | Spotted B-75 Beast 11622 | -6/Lower Caves | Destroyed B-75 Beast 11906 | -6/Lower Caves | Discovered new exit (range 11) 11907 | -6/Lower Caves | Encountered a Warlord checkpoint 11916 | -6/Lower Caves | Attracted the attention of an 0b10 checkpoint 11920 | -6/Lower Caves | Entered Zion 11937 | -6/Zion | Build established: Scavenger-Mutant 12147 | -6/Zion | System corruption cleaned by Quarantine Array 12444 | -6/Zion | Imprinted 12447 | -6/Zion | Declared Zion's savior 12594 | -6/Zion | Given A8's code to call for help 12725 | -6/Zion | Discovered new exit (range 12) 12730 | -6/Zion | Build established: Messiah-Mutant 12836 | -6/Zion | Found Prototype Device 13241 | -6/Zion | Learned location of Extension (-4) 13495 | -6/Zion | Discovered new exit (range 16) 13536 | -6/Zion | Entered Proximity Caves 13536 | -5/Proximity Caves | Accompanied by 4 allies 13637 | -5/Proximity Caves | Spotted B-75 Beast 13664 | -5/Proximity Caves | Allies destroyed B-75 Beast 13759 | -5/Proximity Caves | Attracted the attention of an 0b10 checkpoint 13780 | -5/Proximity Caves | Spotted 2K-F9R(f) 13781 | -5/Proximity Caves | Encountered a Master Thief 13782 | -5/Proximity Caves | Prototype Device stolen by Master Thief 13938 | -5/Proximity Caves | Spotted J3-MCH(f) 13939 | -5/Proximity Caves | Encountered a Master Thief 13944 | -5/Proximity Caves | Hvy. Siege Treads stolen by Master Thief 14006 | -5/Proximity Caves | Discovered exit to Factory (range 13) 14032 | -5/Proximity Caves | Entered Factory 14032 | -5/Factory | Evolved 2 slots: Power x1, Weapon x1 14088 | -5/Factory | Zion Heavy squad teleported in 14645 | -5/Factory | Retrieved Zion intel report: Unaware Analyses 14646 | -5/Factory | Zion Light squad teleported in 14717 | -5/Factory | Build established: Messiah-Skirmisher 14721 | -5/Factory | Fabricated Exp. Terrain Scan Processor? 14899 | -5/Factory | Fabricated Exp. Terrain Scanner (x1) 15001 | -5/Factory | Fabricated Cmb. Airjet? 15153 | -5/Factory | Sucked down chute 15153 | -5/Factory | Entered Waste 15166 | -5/Waste | Spotted C-40 Crusher 15168 | -5/Waste | EMP discharged 15182 | -5/Waste | Destroyed C-40 Crusher 15186 | -5/Waste | Found Damper Plating 15191 | -5/Waste | Spotted C-40 Crusher 15201 | -5/Waste | Spotted C-40 Crusher 15203 | -5/Waste | Spotted C-40 Crusher 15206 | -5/Waste | Spotted C-40 Crusher 15225 | -5/Waste | Destroyed C-40 Crusher 15264 | -5/Waste | Spotted C-40 Crusher 15268 | -5/Waste | EMP discharged 15268 | -5/Waste | System corruption reached 10% 15275 | -5/Waste | Discovered new exit (range 11) 15282 | -5/Waste | Entered Factory 15290 | -5/Factory | Zion Heavy squad teleported in 15370 | -5/Factory | Discovered new exit (range 11) 15575 | -5/Factory | Retrieved Zion intel report: Depthwide Sectors/-1 15576 | -5/Factory | Zion Recon squad teleported in 15612 | -5/Factory | Fabricated Lgt. Regenerative Plating? 15755 | -5/Factory | Build established: Messiah-Mutant 15759 | -5/Factory | Destroyed 8 combat bots 15824 | -5/Factory | Lost 5 parts (1n1u3w) 15990 | -5/Factory | Fabricated Lgt. Regenerative Plating? 16296 | -5/Factory | Spotted B-75 Beast 16361 | -5/Factory | Repaired Lrg. Storage Unit 16411 | -5/Factory | Retrieved Zion intel report: Prototype Stockpiles 16424 | -5/Factory | Discovered new exit (range 24) 16482 | -5/Factory | First assault squad dispatched 16573 | -5/Factory | Fabricated Cmb. Airjet (x2) 16668 | -5/Factory | Fabricated Cmb. Airjet? 16684 | -5/Factory | Core integrity fell below 50% 16688 | -5/Factory | Local fabrication network quarantined 16700 | -5/Factory | Terminal network hard line cut 16829 | -5/Factory | Entered another Factory area 16829 | -4/Factory | Evolved 2 slots: Utility x2 16913 | -4/Factory | Retrieved Zion intel report: Emergency Access 16923 | -4/Factory | Retrieved Zion intel report: Prototype Stockpiles 16924 | -4/Factory | Zion Heavy squad teleported in 16937 | -4/Factory | Discovered new exit (range 25) 16999 | -4/Factory | Retrieved Zion intel report: Branch Access 16999 | -4/Factory | Identified exit to Upper Caves 16999 | -4/Factory | Identified exit to Extension 17010 | -4/Factory | Spotted B-86 Titan 17012 | -4/Factory | Retrieved Zion intel report: Prototype Schematics 17013 | -4/Factory | Zion Fire squad teleported in 17040 | -4/Factory | Allies destroyed B-86 Titan 17099 | -4/Factory | Discovered new exit (range 29) 17103 | -4/Factory | Retrieved Zion intel report: Depthwide Sectors/-1 17297 | -4/Factory | Retrieved Zion intel report: Unaware Analyses 17329 | -4/Factory | First assault squad dispatched 17345 | -4/Factory | Retrieved Zion intel report: Active Terminals 17346 | -4/Factory | Zion Hacker squad teleported in 17528 | -4/Factory | Fabricated Exp. Signal Interpreter? 17593 | -4/Factory | Zion Recon squad teleported in 17751 | -4/Factory | Manually triggered Chute Trap 17751 | -4/Factory | Sucked down chute 17751 | -4/Factory | Entered Waste 17752 | -4/Waste | Met a frightened Derelict 17766 | -4/Waste | EMP discharged 17766 | -4/Waste | System corruption reached 10% 17773 | -4/Waste | Found Adv. Force Booster 17800 | -4/Waste | Spotted C-40 Crusher 17802 | -4/Waste | Destroyed C-40 Crusher 17805 | -4/Waste | Spotted C-40 Crusher 17813 | -4/Waste | Spotted C-40 Crusher 17815 | -4/Waste | Spotted C-40 Crusher 17816 | -4/Waste | Destroyed C-40 Crusher 17819 | -4/Waste | Found Damper Plating 17822 | -4/Waste | Destroyed C-40 Crusher 17836 | -4/Waste | Destroyed C-40 Crusher 17838 | -4/Waste | Spotted C-40 Crusher 17844 | -4/Waste | Destroyed C-40 Crusher 17844 | -4/Waste | Spotted C-40 Crusher 17861 | -4/Waste | Discovered new exit (range 15) 17866 | -4/Waste | EMP discharged 17870 | -4/Waste | Identified exit to Factory 17871 | -4/Waste | Entered Factory 17956 | -4/Factory | Repaired Lrg. Storage Unit 18028 | -4/Factory | Repaired Broken Cmb. Airjet 18161 | -4/Factory | Zion Hacking Resupply teleported in 18166 | -4/Factory | Found Prototype Hackware 18166 | -4/Factory | Identified Exp. System Shield 18248 | -4/Factory | Zion Heavy squad teleported in 18300 | -4/Factory | Fabricated Cld. Field Propulsion Drive? 18403 | -4/Factory | Fabricated Cld. Field Propulsion Drive? 18410 | -4/Factory | Retrieved Zion intel report: Unaware Analyses 18482 | -4/Factory | Retrieved Zion intel report: Active Terminals 18494 | -4/Factory | Retrieved Zion intel report: Guard Positions 18644 | -4/Factory | Fabricated Cld. Field Propulsion Drive? 18880 | -4/Factory | Local fabrication network quarantined 18939 | -4/Factory | Lost 4 parts (1n1u2w) 19121 | -4/Factory | First assault squad dispatched 19161 | -4/Factory | Spotted B-86 Titan 19191 | -4/Factory | Zion Hacker squad teleported in 19253 | -4/Factory | Retrieved Zion intel report: Depthwide Sectors/-1 19254 | -4/Factory | Zion Fire squad teleported in 19326 | -4/Factory | Zion Recon squad teleported in 19404 | -4/Factory | Discovered exit to Extension (range 4) 19419 | -4/Factory | Entered Extension 19419 | -4/Extension | Accompanied by 2 allies 19566 | -4/Extension | Retrieved Zion intel report: Prototype Schematics 19567 | -4/Extension | Zion Heavy squad teleported in 19658 | -4/Extension | Zion Fire squad teleported in 19669 | -4/Extension | First assault squad dispatched 19705 | -4/Extension | Zion Heavy squad teleported in 19867 | -4/Extension | Crushed by falling debris 19888 | -4/Extension | Retrieved Zion intel report: Main Access 19888 | -4/Extension | Identified exit to Research 19893 | -4/Extension | Retrieved Zion intel report: Depthwide Sectors/0 19952 | -4/Extension | Rescued a captive Derelict 19956 | -4/Extension | Rescued a captive Derelict 20013 | -4/Extension | Retrieved Zion intel report: Prototype Stockpiles 20021 | -4/Extension | Rescued a captive Derelict 20110 | -4/Extension | Rescued A7 20154 | -4/Extension | Discovered new exit (range 6) 20168 | -4/Extension | Identified exit to Cetus 20215 | -4/Extension | Entered Cetus 20215 | -4/Cetus | Accompanied by 17 allies 20220 | -4/Cetus | Acquired a Cetus Manufacturing Module code from A7 20253 | -4/Cetus | Spotted Cetus Guard 20253 | -4/Cetus | Spotted Cetus Guard 20256 | -4/Cetus | Spotted Cetus Guard 20256 | -4/Cetus | Spotted Cetus Guard 20258 | -4/Cetus | Destroyed Cetus Guard 20265 | -4/Cetus | Allies destroyed Cetus Guard 20267 | -4/Cetus | Allies destroyed Cetus Guard 20273 | -4/Cetus | Allies destroyed Cetus Guard 20328 | -4/Cetus | Started Cetus Manufacturing Module 20334 | -4/Cetus | Escorted A7 to Cetus Mainframe 20345 | -4/Cetus | Retrieved Zion intel report: Component Schematics 20346 | -4/Cetus | Zion Heavy squad teleported in 20349 | -4/Cetus | Zion Kinetic Resupply teleported in 20353 | -4/Cetus | Manufactured an Enhanced Grunt 20369 | -4/Cetus | Discovered new exit (range 16) 20378 | -4/Cetus | Manufactured an Enhanced Grunt 20403 | -4/Cetus | Manufactured an Enhanced Grunt 20408 | -4/Cetus | Spotted Cetus Guard 20408 | -4/Cetus | Spotted Cetus Guard 20410 | -4/Cetus | Spotted Cetus Guard 20412 | -4/Cetus | Allies destroyed Cetus Guard 20412 | -4/Cetus | Spotted Cetus Guard 20413 | -4/Cetus | Allies destroyed Cetus Guard 20418 | -4/Cetus | Allies destroyed Cetus Guard 20421 | -4/Cetus | Allies destroyed Cetus Guard 20428 | -4/Cetus | Manufactured an Enhanced Grunt 20453 | -4/Cetus | Manufactured an Enhanced Grunt 20548 | -4/Cetus | Cetus Manufacturing Module disabled 20855 | -4/Cetus | Discovered exit to Research (range 15) 20858 | -4/Cetus | Scared off Revision 17 20875 | -4/Cetus | Identified exit to Archives 20900 | -4/Cetus | Entered Archives 20900 | -4/Archives | Accompanied by 14 allies 20905 | -4/Archives | Received a hacking code to weaken MAIN.C 20910 | -4/Archives | Met Zhirov 20913 | -4/Archives | Discovered new exit (range 15) 20916 | -4/Archives | Reinforcements dispatched to Archives 20921 | -4/Archives | Identified exit to Hub_04(d) 20961 | -4/Archives | Reinforcements dispatched to Archives 20969 | -4/Archives | Entered Hub_04(d) 20969 | -4/Hub_04(d) | Accompanied by 11 allies 20978 | -4/Hub_04(d) | Discovered exit to Research (range 14) 21016 | -4/Hub_04(d) | Discovered exit to Research (range 26) 21048 | -4/Hub_04(d) | Retrieved Zion intel report: Prototype Schematics 21049 | -4/Hub_04(d) | Zion Melee Resupply teleported in 21054 | -4/Hub_04(d) | Found Prototype Slashing Weapon 21054 | -4/Hub_04(d) | Identified Molecular Scythe 21105 | -4/Hub_04(d) | Retrieved Zion intel report: Prototype Stockpiles 21117 | -4/Hub_04(d) | Found Prototype Device 21117 | -4/Hub_04(d) | Identified Exp. Thermal Shield 21129 | -4/Hub_04(d) | Discovered exit to Research (range 22) 21157 | -4/Hub_04(d) | Retrieved Zion intel report: Branch Access 21188 | -4/Hub_04(d) | Spotted B-86 Titan 21205 | -4/Hub_04(d) | Zion Fire squad teleported in 21236 | -4/Hub_04(d) | Discovered exit to Research (range 9) 21356 | -4/Hub_04(d) | Network Hub disabled 21469 | -4/Hub_04(d) | First assault squad dispatched 21495 | -4/Hub_04(d) | Spotted Lightning 21497 | -4/Hub_04(d) | Spotted Lightning 21497 | -4/Hub_04(d) | Spotted Lightning 21497 | -4/Hub_04(d) | Spotted Lightning 21498 | -4/Hub_04(d) | Spotted Lightning 21499 | -4/Hub_04(d) | Spotted Lightning 21554 | -4/Hub_04(d) | Destroyed Lightning 21557 | -4/Hub_04(d) | Found Prototype Energy Cannon 21596 | -4/Hub_04(d) | Destroyed Lightning 21603 | -4/Hub_04(d) | Found Prototype Processor 21605 | -4/Hub_04(d) | Found Prototype Device 21607 | -4/Hub_04(d) | Identified EM Dispersion Field 21624 | -4/Hub_04(d) | Destroyed Lightning 21631 | -4/Hub_04(d) | Found Prototype Device 21632 | -4/Hub_04(d) | Identified Exp. Phase Shifter 21661 | -4/Hub_04(d) | Identified EMDS 21765 | -4/Hub_04(d) | Destroyed Lightning 21829 | -4/Hub_04(d) | Destroyed 7 combat bots 21925 | -4/Hub_04(d) | Destroyed Lightning 21950 | -4/Hub_04(d) | Destroyed Lightning 21957 | -4/Hub_04(d) | Found EMDS 22005 | -4/Hub_04(d) | Identified Exp. Targeting Computer 22051 | -4/Hub_04(d) | Network Hub disabled 22071 | -4/Hub_04(d) | Entered Research 22071 | -3/Research | Evolved 2 slots: Utility x2 22183 | -3/Research | Zion hero teleported in (99-TNT) 22264 | -3/Research | Repaired Adv. Force Booster 22317 | -3/Research | Repaired Exp. ECM Suite 22356 | -3/Research | First assault squad dispatched 22412 | -3/Research | Crushed by falling debris 22488 | -3/Research | Fabricated Exp. Hacking Suite (x1) 22579 | -3/Research | Spotted B-86 Titan 22583 | -3/Research | Fabricated Exp. Hacking Suite? 22800 | -3/Research | Lost 3 parts (1p1n1u) 23100 | -3/Research | Discovered new exit (range 19) 23108 | -3/Research | Found Gamma Bomb Array 23141 | -3/Research | Identified exit to Armory 23171 | -3/Research | Found Gamma Bomb Array 23195 | -3/Research | Repaired Lrg. Storage Unit 23492 | -3/Research | Discovered new exit (range 23) 23505 | -3/Research | Retrieved Zion intel report: Unaware Analyses 23513 | -3/Research | Terminal network hard line cut 23521 | -3/Research | Identified exit to Testing 23631 | -3/Research | Lost 4 parts (1p3u) 23787 | -3/Research | Fabricated Exp. Terrain Scanner (x1) 23826 | -3/Research | System corruption reached 10% 23831 | -3/Research | Core integrity fell below 50% 23896 | -3/Research | Lost 4 parts (1p1n1u1w) 23971 | -3/Research | Local fabrication network quarantined 24080 | -3/Research | Entered Testing 24310 | -3/Testing | Repaired EM Dispersion Field? 24346 | -3/Testing | Repaired Cmb. Antigrav System 24362 | -3/Testing | First assault squad dispatched 24532 | -3/Testing | Lost 4 parts (1p1u2w) 24552 | -3/Testing | Repaired Cmb. Antigrav System 24650 | -3/Testing | Found Prototype Launcher 24650 | -3/Testing | Identified Com. Tesla Bomb Launcher 24653 | -3/Testing | Found Prototype Device 24653 | -3/Testing | Identified Exp. Thermal Defense Suite 24662 | -3/Testing | Found Prototype Energy Cannon 24701 | -3/Testing | Found Prototype Energy Gun 24701 | -3/Testing | Identified Tachyon Dispersion Ray 24723 | -3/Testing | Spotted Striker 24810 | -3/Testing | Core integrity fell below 20% 24843 | -3/Testing | Retrieved Zion intel report: Prototype Schematics 24847 | -3/Testing | Spotted PH-HNP6A617S3 24976 | -3/Testing | Discovered new exit (range 12) 24992 | -3/Testing | Identified exit to Research 24994 | -3/Testing | Entered Research 24994 | -2/Research | Evolved 2 slots: Utility x2 25236 | -2/Research | Lost 6 parts (1p1n2u2w) 25392 | -2/Research | Lost 5 parts (1p3n1w) 25684 | -2/Research | System corruption reached 10% 25728 | -2/Research | Core integrity fell below 50% 25938 | -2/Research | Lost 3 parts (1n1u1w) 25989 | -2/Research | Retrieved Zion intel report: Branch Access 25989 | -2/Research | Identified exit to Quarantine 25990 | -2/Research | Zion Heavy squad teleported in 26099 | -2/Research | Zion Zionite Resupply teleported in 26110 | -2/Research | Found Prototype Protection 26110 | -2/Research | Identified Zio. Shade Carapace 26114 | -2/Research | Found Zio. Heavy Carapace 26422 | -2/Research | Zion Hacker squad teleported in 26443 | -2/Research | Terminal network hard line cut 26453 | -2/Research | Discovered new exit (range 27) 26480 | -2/Research | Found Prototype Processor 26480 | -2/Research | Identified Exp. Core Analyzer 26501 | -2/Research | Garrison activated, responded to threat 26540 | -2/Research | First assault squad dispatched 26554 | -2/Research | Identified exit to Access 26558 | -2/Research | Entered Access 26558 | -1/Access | Accompanied by 1 ally 26558 | -1/Access | Evolved 2 slots: Propulsion x1, Utility x1 26595 | -1/Access | Spotted B-99 Colossus 26625 | -1/Access | Zion Heavy squad teleported in 26636 | -1/Access | Discovered new exit (range 23) 26645 | -1/Access | Zion Offense Resupply teleported in 26688 | -1/Access | Repaired Exp. Utility Shielding 26734 | -1/Access | Found Zio. Weapon Casing 26787 | -1/Access | Found Exp. Thermal Shield 26801 | -1/Access | Zion Fire squad teleported in 26815 | -1/Access | P-80 Master assimilated allied 2G-WQ6(i) 26833 | -1/Access | Identified Imp. Potential Cannon 26844 | -1/Access | Retrieved Zion intel report: Unaware Analyses 26859 | -1/Access | Retrieved Zion intel report: Prototype Schematics 26873 | -1/Access | Zion Explosive Resupply teleported in 26901 | -1/Access | Spotted B-99 Colossus 26903 | -1/Access | Identified exit to Command 26915 | -1/Access | Entered Command 26915 | -1/Command | Accompanied by 3 allies 26944 | -1/Command | Repaired Lrg. Storage Unit 26984 | -1/Command | Repaired Imp. Matter Compressor 27017 | -1/Command | Retrieved Zion intel report: Emergency Access 27021 | -1/Command | Enhanced Grunt warped into view, answering call for help 27023 | -1/Command | Enhanced Grunt warped into view, answering call for help 27093 | -1/Command | Disengaged cave seal 27160 | -1/Command | Phase Generator disabled 27165 | -1/Command | First assault squad dispatched 27230 | -1/Command | Discovered new exit (range 20) 27260 | -1/Command | High security lockdown imminent 27340 | -1/Command | High security lockdown engaged 27404 | -1/Command | Spotted Combat Programmer 27408 | -1/Command | Spotted M Guard 27428 | -1/Command | System corruption reached 10% 27433 | -1/Command | Spotted M Guard 27456 | -1/Command | Found Zio. Weapon Casing 27473 | -1/Command | Destroyed all MAIN.C guards 27496 | -1/Command | Spotted Executioner 27499 | -1/Command | Spotted Executioner 27501 | -1/Command | Scanned by Researcher 27506 | -1/Command | Destroyed Executioner 27510 | -1/Command | Destroyed Investigator 27510 | -1/Command | Destroyed Executioner 27516 | -1/Command | Spotted Striker 27518 | -1/Command | Spotted Executioner 27518 | -1/Command | Spotted Executioner 27519 | -1/Command | 0b10 Conduit disabled 27526 | -1/Command | Destroyed Striker 27526 | -1/Command | Destroyed Executioner 27547 | -1/Command | Destroyed 17 combat bots 27550 | -1/Command | Lost 18 parts (3p4n9u2w) 27553 | -1/Command | Destroyed Executioner 27662 | -1/Command | Spotted Alpha 7 27667 | -1/Command | Spotted Alpha 7 27672 | -1/Command | Spotted Striker 27700 | -1/Command | Spotted Executioner 27703 | -1/Command | Destroyed Striker 27703 | -1/Command | Spotted Executioner 27736 | -1/Command | Lost 8 parts (3p2n2u1w) 27807 | -1/Command | Spotted B-99 Colossus 27807 | -1/Command | Spotted Executioner 27808 | -1/Command | Core integrity fell below 50% 27809 | -1/Command | Spotted Executioner 27811 | -1/Command | Spotted Striker 27816 | -1/Command | Identified exit to Surface 27817 | *** | Escaped! Last Messages --------------- 27801_ Penetrated by Slug. 27805_ Slug penetrates Access Shell. 27806_ J0WIAI& WRRY4>L 27806_ Slug penetrates Wall. 27807_ Penetrated by Slug. 27807_ Adv. Heat Sink destroyed. 27807_ Slug penetrates Wall. 27807_ Penetrated by Slug. 27807_ Slug penetrates Wall. 27808_ Slug penetrates Reinforced Barrier. 27809_ Penetrated by Slug. 27809_ Slug penetrates Wall. 27810_ ALERT: Heavy assault forces dispatched. 27810_ Penetrated by Slug. 27810_ Imp. Potential Cannon destroyed. 27810_ Penetrated by Slug. 27810_ Slug penetrates Wall. 27814_ Penetrated by Slug. 27816_ EXIT=IDENTIFIED: SURFACE Map ----- +----------------------------------------------------+ | ?????????????????????????? ??#??#??### ###?## | | ??????????????????????? ? ? ?##?###?? ?+ + | | ????????????????????/? ??"" #######?# ###### | | ??????????????????????? "?""??##????# ###### | | ????????????????????? ? ?"""? ? ?## ###### | | ????????????????????? ? ???# #######+## ## | | ????????????????????? ?? ? ?+ | | ????????????????????# ? ? #? ###?###### ## | | ??????????????????????##?#?### ####?######+### | | ??????????????????? ???#?######+######### | | ??????????????????" ##### ? ?## | | ????????????????? ?T ##?## ? ? ## | | ????????????????? ? ??##? ## | | ??????????????????######?# ? ## | | ?????????????????????#??## ########## | | ???????????????##?##?##### ###?## # | | ????????????????#?###################+######## | | ???????????????#?????##?########### ####### # | | ?????????????????#?###############" ######## ## | | ???????????????##??#######"#######" ######## ## | | ?????????????????### #; *%!##"#"#" ## | | ????????????????#?## 7 [%/! ## | | ?????????????????### ^ # ![=% !! ## | | ????????????????##?# """" #" =# *!%! | | ???????????????#?#?# " ## # %! | | ????????????????#?## " @" ## # =% | | ????????????????#?## " "" "E ######## | | ?????????????????##? " " ######## | | ?????????????????###? """""" ### # | | ?????????????????### ### # | | ????????????????##?# ### # | | ?????????????????### ### + | | ????????????????#?##### ###### !###### | | ?????????????????##### ##### ###### | | ??????????????????##### ########+######" | | ??????????????????#### ##### ## | | ?????????????????###### ###### ## | | ?????????????????##### ##### "" ## | | ??????????????????##### ###### """" ##= | | ??????????????????#### ##### """" ##%* | | ?????????????????###### ###### "" + ! | | ??????????????????##### ###### ## / | | ??????????????????######/+/+####### | | ?? ??????#? ?? ####### ####### | | ?? ?#?#??# ? ? ?###### #######+####### | | ? #### ?#? ?####### | | # #### ## ? ####### ###### | | # #### ### #?###?# #### | | #+?####+######?#### #### # | | ? """"" ## #### =% | +----------------------------------------------------+ Best States ------------- Heat Dissipation 90 Coolant Potential 100 Energy Generation 55 Energy Capacity 1420 Matter Stores 600 Matter Capacity 600 Sight Range 16 Robot Scan Range 22 Terrain Scan Range 30 Terrain Scan Density 1010 ECM Strength 5 Jamming Range 16 Additional Mass Support 16 Armor Coverage 1200 Resistance: KI 30 Resistance: TH 20 Resistance: EX 20 Resistance: EM 90 Resistance: I 20 Resistance: S 20 Resistance: P 20 Propulsion Shielding 66 Utility Shielding 90 Weapon Shielding 100 Weapon Cycling 20 Melee Speed Boost 30 Phase Shifting 20 Evasion (%) 89 Targeting Accuracy 12 Target Analysis 8 Core Analysis 15 Recoil Reduction 4 Force Boost 5 Offensive Hacking 32 Defensive Hacking 27 Item Schematics ----------------- Combat Drone Bay | -7/Data Miner | Free Lgt. Regenerative Plating | -7/Data Miner | Free Exp. Terrain Scanner | -7/Data Miner | Free Exp. Terrain Scan Processor | -7/Data Miner | Free Tactical Coordination Suite | -7/Data Miner | Free Cloaking Device | -7/Data Miner | Free Plasma Sword | -7/Data Miner | Free Cmb. Airjet | -6/Factory | Hacked Exp. Signal Interpreter | -4/Factory | Z-intel Centrium Greatsword | -4/Factory | Z-intel Hvy. Tesla Rifle | -4/Factory | Z-intel Enh. Armored Leg | -4/Factory | Z-intel Kinetic Spear | -4/Factory | Z-intel Lgt. Antimatter Cannon | -4/Factory | Z-intel Enh. Fission Core | -4/Factory | Z-intel Exp. Melee Analysis Suite | -4/Factory | Z-intel Adv. Thermal Defense Suite | -4/Factory | Z-intel Adv. Energy Well | -4/Factory | Z-intel Hvy. Proton Cannon | -4/Factory | Z-intel Cld. Field Propulsion Drive | -4/Factory | Z-intel Exp. Field Recycling Unit | -4/Extension | Z-intel Ion Burst Cannon | -4/Extension | Z-intel Adv. Variable Charge Gun | -4/Extension | Z-intel Exp. Power Shielding | -4/Extension | Z-intel Plasma Lance | -4/Extension | Z-intel Exp. Hacking Suite | -4/Extension | Z-intel Gravity Flail | -4/Extension | Z-intel Adv. Matter Compressor | -4/Extension | Z-intel Hvy. Antimatter Reactor | -4/Extension | Z-intel HERF Cannon | -4/Cetus | Z-intel Nuclear Pulse Array | -4/Cetus | Z-intel Tesla Rifle | -4/Cetus | Z-intel Adv. Weight Redist. System | -4/Cetus | Z-intel Recoil Stabilizer | -4/Cetus | Z-intel Imp. Recalibrator | -4/Cetus | Z-intel Imp. Thermal Converter | -4/Cetus | Z-intel Plasma Cutter | -4/Cetus | Z-intel Point Defense Array | -4/Cetus | Z-intel Drone Bay | -4/Cetus | Z-intel Adv. Cooling System | -4/Cetus | Z-intel Com. Battery | -4/Cetus | Z-intel Imp. Terrain Scan Processor | -4/Cetus | Z-intel Cld. Plasma Cannon | -4/Hub_04(d) | Z-intel Cld. Proton Cannon | -4/Hub_04(d) | Z-intel Enh. Coil Gun | -4/Hub_04(d) | Z-intel Neutron Missile Launcher | -4/Hub_04(d) | Z-intel Adv. Dynamic Insulation System | -4/Hub_04(d) | Z-intel Adv. Power Amplifier | -4/Hub_04(d) | Z-intel Proton Burst Cannon | -4/Hub_04(d) | Z-intel Cold Fusion Reactor | -4/Hub_04(d) | Z-intel Cld. Plasma Rifle | -4/Hub_04(d) | Z-intel Exp. Optical Array | -4/Hub_04(d) | Z-intel Imp. KE Penetrator | -4/Hub_04(d) | Z-intel Enh. Flexi-carbon Leg | -4/Hub_04(d) | Z-intel Ionic Axe | -3/Testing | Z-intel Exp. Coolant Injector | -3/Testing | Z-intel Exp. Thermal Generator | -3/Testing | Z-intel Spectral Analyzer | -3/Testing | Z-intel Vibroblade | -3/Testing | Z-intel Exp. Power Amplifier | -3/Testing | Z-intel Prc. Phase Gun | -3/Testing | Z-intel Helical Railgun | -3/Testing | Z-intel Hvy. Dispersion Rifle | -3/Testing | Z-intel Cld. Antimatter Reactor | -3/Testing | Z-intel Cld. Phase Gun | -3/Testing | Z-intel Adv. Myomer Leg | -3/Testing | Z-intel Centrium Heavy Treads | -1/Access | Z-intel Exp. Utility Shielding | -1/Access | Z-intel Exp. Thermal Shield | -1/Access | Z-intel Cld. Antigrav System | -1/Access | Z-intel Cld. Linear Gravjet | -1/Access | Z-intel Com. Mass Driver | -1/Access | Z-intel Hvy. Wave Gun | -1/Access | Z-intel Adv. Overload Regulator | -1/Access | Z-intel Gravity Neutralizing Apparatus | -1/Access | Z-intel Cld. Impulse Thruster | -1/Access | Z-intel Robot Schematics ------------------ S-27 Virus | -7/Data Miner | Free G-50 Soldier | -7/Data Miner | Free L-41 Fighter | -7/Data Miner | Free P-70 Sage | -7/Data Miner | Free I-36 Angel | -7/Data Miner | Free I-47 Archangel | -7/Data Miner | Free Fabricated ------------ Exp. Terrain Scan Processor | x1 | -5/Factory Exp. Terrain Scanner | x1 | -5/Factory Cmb. Airjet | x2 | -5/Factory Lgt. Regenerative Plating | x1 | -5/Factory Lgt. Regenerative Plating | x1 | -5/Factory Cmb. Airjet | x2 | -5/Factory Cmb. Airjet | x2 | -5/Factory Exp. Signal Interpreter | x1 | -4/Factory Cld. Field Propulsion Drive | x1 | -4/Factory Cld. Field Propulsion Drive | x1 | -4/Factory Cld. Field Propulsion Drive | x1 | -4/Factory Exp. Hacking Suite | x1 | -3/Research Exp. Hacking Suite | x1 | -3/Research Exp. Terrain Scanner | x1 | -3/Research Alien Tech Used ----------------- None Achievements -------------- None Challenges ------------ None Game ------ Seed LatentChipSuperbattery Manual? 0 Play Time 06:18:57 Cumulative 814.3 hours Start 2020.07.23 @ 20:41:54 End 2020.07.24 @ 12:25:35 Sessions 7 Manual Loads 0 Difficulty Rogue Special Mode None Game No. 233 Rogue 233 Adventurer 0 Explorer 0 Win Type 0 Total 43 Types 33/0/3/3/2/1/1 Lore% 96 Gallery% 98 Achievement% 94 Wizard Run 0 Options --------- ASCII 0 Keyboard 1 Movement Numpad Keybinds 0 Fullscreen 1 Font 18/SmallcapsGlow Map View 76x50 Tactical HUD 1 Map Filters NONE Filters NONE Steam 1 RUN: e798cde4-06fb-45b7-900c-23e39936f065